{"text_format":"1","workbook":"xlsx","n_sheets":4,"sheets":["Makrokomanda1","Sheet1","Sheet2","Sheet3"],"not_rendered":{"charts":0,"images":0,"macros":1,"external_links":0,"defined_names":3,"comments":0,"pivot_tables":0},"unopened":[],"bounds":{"document_bytes":16777216,"sheet_cells":100000,"rows_first":2000,"rows_last":500,"rows_between":2000,"halvings":0,"cell_chars":16384,"cell_head_chars":4096},"cells_cut":0,"cells_raw":0,"read":"whole","date_system":"1900"}

{"sheet":"Makrokomanda1","index":0,"n_rows":0,"n_cols":0,"rows_kept":0,"cut":false,"hidden":false,"merged":[]}

{"sheet":"Sheet1","index":1,"n_rows":415,"n_cols":11,"rows_kept":415,"cut":false,"hidden":false,"merged":[[307,1,307,2],[307,3,307,9],[311,1,311,2],[311,3,311,9],[323,1,323,2],[323,3,323,9],[342,1,342,2],[342,3,342,9],[350,1,350,2],[350,3,350,9],[334,1,334,7],[315,1,315,7],[319,1,319,7],[310,5,310,7],[313,5,313,7],[314,5,314,7],[317,5,317,7],[318,5,318,7],[308,3,310,3],[308,4,310,4],[316,1,318,1],[316,2,318,2],[316,3,318,3],[316,4,318,4],[279,3,279,9],[287,1,287,2],[287,3,287,9],[291,1,291,2],[291,3,291,9],[299,1,299,2],[299,3,299,9],[303,1,303,2],[303,3,303,9],[293,5,293,7],[294,5,294,7],[297,5,297,7],[298,5,298,7],[301,5,301,7],[295,1,295,7],[282,5,282,7],[285,5,285,7],[286,5,286,7],[289,5,289,7],[290,5,290,7],[292,2,294,2],[292,3,294,3],[292,4,294,4],[124,1,124,2],[124,3,124,9],[136,1,136,2],[136,3,136,9],[140,1,140,2],[140,3,140,9],[144,1,144,2],[144,3,144,9],[148,1,148,2],[148,3,148,9],[129,3,131,3],[129,4,131,4],[130,5,130,7],[131,5,131,7],[132,1,132,7],[112,1,112,2],[112,3,112,9],[116,1,116,2],[116,3,116,9],[95,5,95,7],[100,1,100,7],[104,1,104,7],[108,1,108,7],[96,1,96,7],[98,5,98,7],[99,5,99,7],[102,5,102,7],[106,5,106,7],[101,4,103,4],[16,1,16,2],[16,3,16,9],[12,1,12,2],[12,3,12,9],[20,1,20,2],[20,3,20,9],[24,1,24,2],[24,3,24,9],[0,5,0,8],[1,0,1,8],[2,0,2,8],[4,0,4,8],[19,5,19,7],[17,0,19,0],[17,1,19,1],[17,2,19,2],[13,1,15,1],[13,2,15,2],[13,3,15,3],[13,4,15,4],[22,5,22,7],[23,5,23,7],[29,0,31,0],[29,1,31,1],[29,2,31,2],[25,0,27,0],[25,2,27,2],[25,3,27,3],[21,0,23,0],[21,1,23,1],[21,2,23,2],[25,1,27,1],[206,5,206,7],[10,5,10,7],[11,5,11,7],[15,5,15,7],[14,5,14,7],[18,5,18,7],[17,3,19,3],[17,4,19,4],[21,3,23,3],[21,4,23,4],[47,5,47,7],[66,5,66,7],[67,5,67,7],[70,5,70,7],[71,5,71,7],[74,5,74,7],[75,5,75,7],[50,5,50,7],[51,5,51,7],[54,5,54,7],[55,5,55,7],[72,1,72,7],[28,1,28,7],[25,4,27,4],[225,5,225,7],[226,5,226,7],[229,5,229,7],[321,5,321,7],[322,5,322,7],[332,5,332,7],[333,5,333,7],[247,1,247,7],[251,1,251,7],[242,5,242,7],[245,5,245,7],[246,5,246,7],[249,5,249,7],[281,5,281,7],[267,1,267,7],[271,1,271,7],[262,5,262,7],[265,5,265,7],[266,5,266,7],[269,5,269,7],[270,5,270,7],[273,5,273,7],[274,5,274,7],[279,1,279,2],[26,5,26,7],[27,5,27,7],[30,5,30,7],[31,5,31,7],[34,5,34,7],[35,5,35,7],[46,5,46,7],[36,1,36,7],[40,1,40,7],[29,3,31,3],[29,4,31,4],[38,5,38,7],[39,5,39,7],[32,1,32,2],[32,3,32,9],[48,1,48,2],[48,3,48,9],[68,1,68,2],[90,5,90,7],[91,5,91,7],[94,5,94,7],[88,1,88,7],[92,1,92,7],[42,5,42,7],[43,5,43,7],[49,1,51,1],[49,2,51,2],[49,3,51,3],[49,4,51,4],[81,4,83,4],[52,1,52,7],[68,3,68,9],[80,1,80,2],[80,3,80,9],[84,1,84,2],[84,3,84,9],[213,5,213,7],[214,5,214,7],[217,5,217,7],[218,5,218,7],[221,5,221,7],[107,5,107,7],[110,5,110,7],[111,5,111,7],[209,5,209,7],[205,5,205,7],[215,1,215,7],[219,1,219,7],[114,5,114,7],[115,5,115,7],[128,1,128,7],[152,1,152,7],[160,1,160,7],[196,1,196,7],[198,5,198,7],[199,5,199,7],[122,5,122,7],[125,2,127,2],[211,1,211,7],[118,5,118,7],[277,5,277,7],[278,5,278,7],[250,5,250,7],[253,5,253,7],[254,5,254,7],[257,5,257,7],[258,5,258,7],[261,5,261,7],[275,3,275,9],[233,5,233,7],[234,5,234,7],[237,5,237,7],[238,5,238,7],[241,5,241,7],[259,1,259,7],[255,1,255,7],[263,1,263,7],[231,1,231,7],[243,1,243,2],[243,3,243,9],[235,1,235,7],[239,1,239,7],[33,0,35,0],[33,1,35,1],[33,2,35,2],[33,3,35,3],[33,4,35,4],[103,5,103,7],[9,0,11,0],[9,1,11,1],[9,2,11,2],[9,3,11,3],[9,4,11,4],[13,0,15,0],[37,0,39,0],[37,1,39,1],[37,2,39,2],[37,3,39,3],[37,4,39,4],[45,0,47,0],[45,1,47,1],[45,2,47,2],[45,3,47,3],[45,4,47,4],[44,1,44,7],[49,0,51,0],[65,0,67,0],[65,1,67,1],[65,2,67,2],[65,3,67,3],[65,4,67,4],[56,1,56,7],[60,1,60,7],[64,1,64,7],[58,5,58,7],[59,5,59,7],[62,5,62,7],[63,5,63,7],[61,0,63,0],[61,1,63,1],[61,2,63,2],[53,0,55,0],[53,1,55,1],[53,2,55,2],[53,3,55,3],[57,0,59,0],[57,1,59,1],[57,2,59,2],[57,3,59,3],[57,4,59,4],[53,4,55,4],[85,0,87,0],[85,1,87,1],[85,2,87,2],[85,3,87,3],[85,4,87,4],[82,5,82,7],[83,5,83,7],[69,0,71,0],[69,1,71,1],[69,2,71,2],[69,3,71,3],[69,4,71,4],[86,5,86,7],[87,5,87,7],[77,2,79,2],[77,3,79,3],[77,4,79,4],[76,1,76,7],[78,5,78,7],[79,5,79,7],[81,0,83,0],[81,1,83,1],[81,2,83,2],[81,3,83,3],[89,0,91,0],[89,1,91,1],[89,2,91,2],[89,3,91,3],[89,4,91,4],[93,0,95,0],[93,1,95,1],[93,2,95,2],[93,3,95,3],[93,4,95,4],[97,0,99,0],[97,1,99,1],[97,2,99,2],[97,3,99,3],[97,4,99,4],[208,0,210,0],[208,1,210,1],[208,2,210,2],[208,3,210,3],[208,4,210,4],[113,0,115,0],[113,1,115,1],[113,2,115,2],[113,3,115,3],[113,4,115,4],[117,0,119,0],[117,1,119,1],[117,2,119,2],[117,3,119,3],[117,4,119,4],[101,0,103,0],[101,1,103,1],[101,2,103,2],[101,3,103,3],[119,5,119,7],[210,5,210,7],[123,5,123,7],[125,0,127,0],[125,1,127,1],[212,0,214,0],[212,1,214,1],[212,2,214,2],[212,3,214,3],[212,4,214,4],[121,0,123,0],[121,1,123,1],[121,2,123,2],[121,3,123,3],[121,4,123,4],[120,1,120,2],[120,3,120,9],[125,3,127,3],[125,4,127,4],[126,5,126,7],[127,5,127,7],[129,0,131,0],[129,1,131,1],[129,2,131,2],[228,0,230,0],[228,1,230,1],[228,2,230,2],[228,3,230,3],[228,4,230,4],[216,0,218,0],[216,1,218,1],[216,2,218,2],[216,3,218,3],[216,4,218,4],[220,0,222,0],[220,1,222,1],[220,2,222,2],[220,3,222,3],[220,4,222,4],[223,1,223,7],[227,1,227,7],[224,0,226,0],[224,1,226,1],[224,2,226,2],[224,3,226,3],[224,4,226,4],[230,5,230,7],[222,5,222,7],[240,0,242,0],[240,1,242,1],[240,2,242,2],[240,3,242,3],[240,4,242,4],[244,0,246,0],[244,1,246,1],[244,2,246,2],[244,3,246,3],[244,4,246,4],[232,0,234,0],[232,1,234,1],[232,2,234,2],[232,3,234,3],[232,4,234,4],[236,0,238,0],[236,1,238,1],[236,2,238,2],[236,3,238,3],[236,4,238,4],[260,0,262,0],[260,1,262,1],[260,3,262,3],[260,2,262,2],[260,4,262,4],[252,3,254,3],[256,0,258,0],[256,1,258,1],[256,2,258,2],[256,3,258,3],[256,4,258,4],[248,0,250,0],[248,1,250,1],[248,2,250,2],[248,3,250,3],[248,4,250,4],[252,0,254,0],[252,1,254,1],[252,2,254,2],[252,4,254,4],[272,0,274,0],[272,1,274,1],[272,2,274,2],[272,3,274,3],[272,4,274,4],[276,0,278,0],[276,1,278,1],[276,2,278,2],[276,3,278,3],[276,4,278,4],[275,1,275,2],[264,0,266,0],[264,1,266,1],[264,2,266,2],[264,3,266,3],[264,4,266,4],[268,0,270,0],[268,1,270,1],[268,2,270,2],[268,3,270,3],[268,4,270,4],[280,0,282,0],[280,1,282,1],[280,2,282,2],[280,3,282,3],[280,4,282,4],[284,0,286,0],[284,1,286,1],[284,2,286,2],[284,3,286,3],[284,4,286,4],[283,1,283,7],[312,2,314,2],[312,3,314,3],[312,4,314,4],[309,5,309,7],[288,0,290,0],[288,1,290,1],[288,2,290,2],[288,4,290,4],[288,3,290,3],[296,0,298,0],[296,1,298,1],[296,2,298,2],[296,3,298,3],[296,4,298,4],[304,3,306,3],[304,4,306,4],[302,5,302,7],[305,5,305,7],[306,5,306,7],[308,0,310,0],[308,1,310,1],[308,2,310,2],[292,0,294,0],[292,1,294,1],[41,0,43,0],[41,1,43,1],[41,2,43,2],[41,3,43,3],[41,4,43,4],[61,3,63,3],[61,4,63,4],[109,4,111,4],[109,0,111,0],[109,1,111,1],[109,2,111,2],[109,3,111,3],[105,0,107,0],[105,1,107,1],[105,2,107,2],[105,3,107,3],[105,4,107,4],[73,0,75,0],[73,1,75,1],[73,2,75,2],[73,3,75,3],[73,4,75,4],[77,0,79,0],[77,1,79,1],[133,0,135,0],[133,1,135,1],[133,2,135,2],[133,3,135,3],[133,4,135,4],[134,5,134,7],[135,5,135,7],[137,0,139,0],[137,1,139,1],[137,2,139,2],[137,3,139,3],[137,4,139,4],[138,5,138,7],[139,5,139,7],[141,0,143,0],[141,1,143,1],[141,2,143,2],[141,3,143,3],[141,4,143,4],[142,5,142,7],[143,5,143,7],[145,0,147,0],[145,1,147,1],[145,2,147,2],[145,3,147,3],[145,4,147,4],[146,5,146,7],[147,5,147,7],[165,1,167,1],[165,2,167,2],[165,3,167,3],[149,0,151,0],[149,1,151,1],[149,2,151,2],[149,3,151,3],[149,4,151,4],[150,5,150,7],[151,5,151,7],[153,0,155,0],[153,1,155,1],[153,2,155,2],[153,3,155,3],[153,4,155,4],[154,5,154,7],[155,5,155,7],[169,4,171,4],[170,5,170,7],[171,5,171,7],[188,1,188,7],[176,1,176,7],[169,0,171,0],[169,1,171,1],[156,1,156,7],[157,0,159,0],[157,1,159,1],[157,2,159,2],[157,3,159,3],[157,4,159,4],[158,5,158,7],[159,5,159,7],[161,0,163,0],[161,1,163,1],[161,2,163,2],[161,3,163,3],[161,4,163,4],[162,5,162,7],[163,5,163,7],[164,1,164,7],[165,0,167,0],[184,1,184,7],[185,0,187,0],[185,1,187,1],[185,2,187,2],[185,3,187,3],[185,4,187,4],[186,5,186,7],[187,5,187,7],[165,4,167,4],[166,5,166,7],[167,5,167,7],[173,0,175,0],[173,1,175,1],[173,2,175,2],[173,3,175,3],[173,4,175,4],[174,5,174,7],[175,5,175,7],[168,1,168,2],[168,3,168,9],[172,1,172,2],[172,3,172,9],[169,2,171,2],[169,3,171,3],[177,0,179,0],[177,1,179,1],[177,2,179,2],[177,3,179,3],[177,4,179,4],[178,5,178,7],[179,5,179,7],[182,5,182,7],[180,1,180,7],[181,0,183,0],[181,1,183,1],[181,2,183,2],[181,3,183,3],[181,4,183,4],[183,5,183,7],[193,0,195,0],[193,1,195,1],[193,2,195,2],[193,3,195,3],[193,4,195,4],[194,5,194,7],[195,5,195,7],[189,0,191,0],[189,1,191,1],[189,2,191,2],[189,3,191,3],[189,4,191,4],[190,5,190,7],[192,1,192,7],[191,5,191,7],[197,0,199,0],[197,1,199,1],[197,2,199,2],[197,3,199,3],[197,4,199,4],[320,0,322,0],[320,1,322,1],[320,2,322,2],[320,3,322,3],[320,4,322,4],[300,0,302,0],[300,1,302,1],[300,2,302,2],[300,3,302,3],[300,4,302,4],[304,0,306,0],[304,1,306,1],[304,2,306,2],[316,0,318,0],[200,1,200,7],[207,1,207,7],[204,5,204,7],[312,0,314,0],[312,1,314,1],[338,1,338,7],[339,0,341,0],[339,1,341,1],[339,2,341,2],[339,3,341,3],[339,4,341,4],[340,5,340,7],[341,5,341,7],[327,5,327,7],[328,5,328,7],[329,5,329,7],[330,1,330,7],[335,0,337,0],[335,1,337,1],[335,2,337,2],[335,3,337,3],[335,4,337,4],[336,5,336,7],[337,5,337,7],[331,0,333,0],[331,1,333,1],[331,2,333,2],[331,3,333,3],[331,4,333,4],[343,0,345,0],[343,1,345,1],[343,2,345,2],[343,3,345,3],[343,4,345,4],[344,5,344,7],[345,5,345,7],[346,1,346,7],[347,0,349,0],[347,1,349,1],[347,2,349,2],[347,3,349,3],[347,4,349,4],[348,5,348,7],[349,5,349,7],[351,0,353,0],[351,1,353,1],[351,2,353,2],[351,3,353,3],[351,4,353,4],[352,5,352,7],[353,5,353,7],[354,1,354,7],[355,0,357,0],[355,1,357,1],[355,2,357,2],[355,3,357,3],[355,4,357,4],[356,5,356,7],[357,5,357,7],[358,1,358,7],[359,0,361,0],[359,1,361,1],[359,2,361,2],[359,3,361,3],[359,4,361,4],[360,5,360,7],[361,5,361,7],[362,1,362,7],[363,0,365,0],[363,1,365,1],[363,2,365,2],[363,3,365,3],[363,4,365,4],[364,5,364,7],[365,5,365,7],[366,1,366,7],[367,0,369,0],[367,1,369,1],[367,2,369,2],[367,3,369,3],[367,4,369,4],[368,5,368,7],[369,5,369,7],[370,1,370,7],[371,0,373,0],[371,1,373,1],[371,2,373,2],[371,3,373,3],[371,4,373,4],[372,5,372,7],[373,5,373,7],[374,1,374,7],[375,0,377,0],[375,1,377,1],[375,2,377,2],[375,3,377,3],[375,4,377,4],[376,5,376,7],[377,5,377,7],[378,1,378,7],[379,0,381,0],[379,1,381,1],[379,2,381,2],[379,3,381,3],[379,4,381,4],[380,5,380,7],[381,5,381,7],[382,1,382,7],[383,0,385,0],[383,1,385,1],[383,2,385,2],[383,3,385,3],[383,4,385,4],[384,5,384,7],[385,5,385,7],[387,0,389,0],[387,1,389,1],[387,2,389,2],[387,3,389,3],[387,4,389,4],[388,5,388,7],[389,5,389,7],[386,1,386,2],[386,3,386,9],[390,1,390,7],[391,0,393,0],[391,1,393,1],[391,2,393,2],[391,3,393,3],[391,4,393,4],[392,5,392,7],[393,5,393,7],[394,1,394,2],[394,3,394,9],[395,0,397,0],[395,1,397,1],[395,2,397,2],[395,3,397,3],[395,4,397,4],[396,5,396,7],[397,5,397,7],[398,1,398,7],[399,0,401,0],[399,1,401,1],[399,2,401,2],[399,3,401,3],[399,4,401,4],[400,5,400,7],[401,5,401,7],[403,0,405,0],[403,1,405,1],[403,2,405,2],[403,3,405,3],[403,4,405,4],[404,5,404,7],[405,5,405,7],[406,1,406,7],[402,1,402,2],[402,3,402,9],[414,1,414,2],[414,3,414,9],[407,0,409,0],[407,1,409,1],[407,2,409,2],[407,3,409,3],[407,4,409,4],[408,5,408,7],[409,5,409,7],[410,1,410,7],[411,0,413,0],[411,1,413,1],[411,2,413,2],[411,3,413,3],[411,4,413,4],[412,5,412,7],[413,5,413,7]]}
[null,null,null,null,null,"3 pirkimo dokumentų priedas"]
["P A S I Ū L Y M A S"]
["VIENKARTINĖS MEDICINOS PRIEMONĖS INTERVENCINEI KARDIOLOGIJAI"]
["Pastabos:"]
["(1)Visoms nurodytoms konkrečioms medžiagoms ir/ar konkretiems prekių pavadinimams taikoma „arba lygiavertis“. Tiekėjas, siūlantis prekę, pasižyminčią lygiavertėmis savybėmis, privalo patikimomis priemonėmis įrodyti, kad siūloma prekė yra lygiavertė ir visiškai atitinka techninėje specifikacijoje keliamus reikalavimus"]
["(2) Visų prekių vertinimui pateikiami bandomieji pavyzdžiai"]
["(3) Tiekėjas privalo užtikrinti priemones naudosiančių kardiologų apmokymą iš gamintojo atstovo"]
[]
["P.d. Nr.","Pavadinimas","Reikalavimai","Mato vnt.","Orient.kiekis ","Mato vnt. įkainis be PVM, Eur","PVM dydis, %","Mato vnt. įkainis su PVM, Eur","Orientacinė  suma be PVM,  Eur","Siūlomos priemonės gamintojas"]
["1.                                   ","PTKA balionas rutininėms procedūroms","Gero slydimo – spec. hidrofilinė danga. Diametras: vidinė dalis ne daugiau 2,1 F, distalinė dalis – ne daugiau 2,4 F. Nominalus slėgis ne mažiau 8 atm, baliono sprogimo slėgis (RBP) - ne mažiau 14 atm. Balionėliai įvairių ilgių nuo 6 mm iki 30 mm ir įvairių diametrų nuo 1,2 mm iki 5,0 mm (diametro žingsnis 0,25 mm). Balioninio kateterio naudojamas ilgis ne mažiau 145 cm. Balionas pagamintas iš atsparios abrazijoms Pebax ar lygiavertės medžiagos. Lazeriu šlifuota proksimali baliono dalis. Universalaus panaudojimo - plėtimams ir stentavimui. Balioninio kateterio išsitempimas turi būti tiksliai kontroliuojamas, baliono diametro kitimas iki 10 procentų, žemo distalinio profilio ties lanksčiais rentgeno kontrastiniais markeriais. Pritaikyta 0,014 colio diametro vielai.","vnt.",10000,61.54,0.05,{"$f":"F10*1.05","v":64.617000000000004},{"$f":"E10*F10","v":615400},"Alvimedica gamintojas, Invader PTCA balionas"," "]
[null,null,null,null,null,"PVM suma, Eur",null,null,{"$f":"I12-I10","v":30770}]
[null,null,null,null,null,"Orientacinė suma su PVM, Eur",null,null,{"$f":"E10*H10","v":646170}]
[null,"Orientacinė suma su PVM, Eur žodžiais:",null,{"$f":"suma_zodziais(I12)","v":"Šeši šimtai keturiasdešimt šeši tūkstančiai vienas šimtas septyniasdešimt eurų  00 ct"}]
["2.                                   ","PTKA balionas (monorail tipo)","Gero slydimo - silx ar lygiavertės medžiagos hidrofilinė danga. Diametras: vidinė dalis ne daugiau 1,7 F, distalinė dalis - ne daugiau 2,6 F. Nominalus slėgis ne mažiau 6 atm, baliono sprogimo slėgis (RBP) - ne mažiau 16 atm, MBP - ne mažiau 22 atm. Balionėliai įvairių ilgių nuo 10 mm iki 40 mm (visiems diametrams) ir įvairių diametrų nuo 1,25 mm iki 4,5 mm (diametro žingsnis 0,25 mm). Balioninio kateterio naudojamas ilgis ne mažesnis kaip 145 cm. Baliono medžiaga pebax ar lygiavertė atspari abrazijoms, lazeriu šlifuota proksimali baliono dalis. Balioninio kateterio išsitempimas turi būti tiksliai kontroliuojamas, baliono diametro kitimas iki 10 proc. Žemo distalinio profilio ties distaliniu markeriu. Pritaikyta 0,014 colio diametro vielai.","vnt.",10000,47.47,0.05,{"$f":"F14*1.05","v":49.843499999999999},{"$f":"E14*F14","v":474700},"Conic Vascular gamintojas, Clever balionas"]
[null,null,null,null,null,"PVM suma, Eur",null,null,{"$f":"I16-I14","v":23735}]
[null,null,null,null,null,"Orientacinė suma su PVM, Eur",null,null,{"$f":"E14*H14","v":498435}]
[null,"Orientacinė suma su PVM, Eur žodžiais:",null,{"$f":"suma_zodziais(I16)","v":"Keturi šimtai devyniasdešimt aštuoni tūkstančiai keturi šimtai trisdešimt penki eurai  00 ct"}]
["3.                                   ","PTKA balionas vingiuotoms kraujagyslėms ir distalinėms, stenozėms (monorail tipo)","Gero slydimo - dura-trac ar lygiavertės medžiagos hidrofilinė danga. Žemo profilio: vidinė dalis ne daugiau 1,9 F, distalinė dalis – ne daugiau 2,6 F, praėjimo profilis (crossing profile) nuo 0,5 mm. Nominalus slėgis ne mažiau 8 atm, RBP- ne mažiau 14 atm. Balionėliai įvairių ilgių nuo 6 mm iki 30 mm ir įvairių diametrų nuo 1,25 mm iki 4,0 mm (diametro žingsnis 0,25mm). Balioninio kateterio naudojamas ilgis ne mažiau 138 cm. Baliono medžiaga Fulkrum ar lygiavertė atspari abrazijoms, lazeriu šlifuota proksimali baliono dalis. Balioninio kateterio išsitempimas turi būti tiksliai kontroliuojamas, baliono diametro kitimas max. 10-15 procentų. Pritaikyta 0,014 colio diametro vielai.","vnt.",10000,47.47,0.05,{"$f":"F18*1.05","v":49.843499999999999},{"$f":"E18*F18","v":474700},"Conic Vascular gamintojas, Clever balionas"]
[null,null,null,null,null,"PVM suma, Eur",null,null,{"$f":"I20-I18","v":23735}]
[null,null,null,null,null,"Orientacinė suma su PVM, Eur",null,null,{"$f":"E18*H18","v":498435}]
[null,"Orientacinė suma su PVM, Eur žodžiais:",null,{"$f":"suma_zodziais(I20)","v":"Keturi šimtai devyniasdešimt aštuoni tūkstančiai keturi šimtai trisdešimt penki eurai  00 ct"}]
["4.                                   ","PTKA balionas žemo profilio rutininėms procedūroms (monorail tipo)","Monorail tipo, gero slydimo – bioslide ar lygiavertė hidrofilinė danga. Balionėlio diametrai nuo 1,5 mm iki 6,0 mm, ilgiai nuo 8 mm iki 30 mm visiems balionų diametrams išskyrus 1,5 mm diametro balionus. Kateterio ilgis ne mažiau 140 cm. Kateterio diametras: proksimalinė dalis ne daugiau 1,8 F, distalinė dalis ne daugiau 2,4 F. Nominalus baliono slėgis (NBP) ne mažiau 6 atm, RBP ne mažiau 14 atm, maksimalus slėgis (MBP) ne mažiau 19 atm. Baliono medžiaga leap/pabex ar lygiavertė atspari abrazijoms. Baliono diametras priklausomai nuo slėgio (NBP – RBP) kinta ne mažiau 13 procentų. Pritaikyti 0,014 colio diametro PTKA vielai. Du rentgeno kontrastiniai markeriai, išskyrus 1,5 mm diametro balionėlius (vienas markeris centre). Kateterio galiukas lankstus, trumpas, kūgio formos, įėjimo profilis (Lesion entry profile) ne daugiau 0,017 colio.","vnt.",10000,47.47,0.05,{"$f":"F22*1.05","v":49.843499999999999},{"$f":"E22*F22","v":474700},"Conic Vascular gamintojas, Clever balionas"]
[null,null,null,null,null,"PVM suma, Eur",null,null,{"$f":"I24-I22","v":23735}]
[null,null,null,null,null,"Orientacinė suma su PVM, Eur",null,null,{"$f":"E22*H22","v":498435}]
[null,"Orientacinė suma su PVM, Eur žodžiais:",null,{"$f":"suma_zodziais(I24)","v":"Keturi šimtai devyniasdešimt aštuoni tūkstančiai keturi šimtai trisdešimt penki eurai  00 ct"}]
["5.                                   ","PTKA balionas kalcifikuotoms \nstenozėms (monorail tipo)\n","Kateterio kūnas gerai valdomas – plieninis ar lygiavertės medžiagos. Lanksti iki 15 cm ilgio jungiančioji dalis tarp kūno ir distalinės dalies - leidžia gerai praeiti vingiuotas ir distalines stenozes. Kateterio kūnas atsparus persilenkimui, sustiprinta pereinančioji baliono kūno dalis tarp distalinio ir proksimalinio segmento. Dviguba danga (paties kateterio hidrofobinė, balionėlio - hidrofilinė) užtikrina gerą valdymą ir praeinamumą. Diametras: proksimali dalis ne daugiau 1,8 F, distalinė dalis – ne daugiau 2,7 F. Nominalus slėgis ne mažiau 12 atm, RBP - ne mažiau 20 atm. Galiukas lankstus, trumpas ir kūgio formos, lazeriu šlifuotas. Balioninio kateterio išsitempimas turi būti tiksliai kontroliuojamas, baliono diametro kitimas 3-4%. Įvairių diametrų nuo 2,0 mm iki 5,0 mm ir ilgių nuo 10mm iki 20 mm. Bendras darbinis ilgis ne mažiau 140 cm. Žemo distalinio profilio ties distaliniu markeriu. Pritaikyta 0,014 colio diametro vielai.","vnt.",10000]
[null,null,null,null,null,"PVM suma, Eur"]
[null,null,null,null,null,"Orientacinė suma su PVM, Eur"]
[null,"Orientacinė suma su PVM, Eur žodžiais:"]
["6.                                   ","PTKA balionas rutininėms procedūroms (OTW tipo)","Dviguba danga: kateterio - hidrofobinė, balionėlio - hidrofilinė. Diametras: proksimali dalis ne daugiau 3,2 F, distalinė dalis – ne daugiau 2,6 F. Nominalus slėgis ne mažiau 8 atm, RBP - ne mažiau 14 atm. Kateterio galiukas trumpas, lankstus, 0,016 colio dydžio. Įvairių diametrų nuo 1,25mm iki 4,0 mm ir ilgių nuo 6 mm iki 30 mm. Bendras darbinis ilgis ne mažiau kaip 140 cm. Pritaikyta 0,014 colio diametro vielai.","vnt.",1000,69.48,0.05,{"$f":"F30*1.05","v":72.954000000000008},{"$f":"E30*F30","v":69480},"Conic Vascular gamintojas, Milvus OTW 3,2 F balionas"]
[null,null,null,null,null,"PVM suma, Eur",null,null,{"$f":"I32-I30","v":3474.0000000000146}]
[null,null,null,null,null,"Orientacinė suma su PVM, Eur",null,null,{"$f":"E30*H30","v":72954.000000000015}]
[null,"Orientacinė suma su PVM, Eur žodžiais:",null,{"$f":"suma_zodziais(I32)","v":"Septyniasdešimt du tūkstančiai devyni šimtai penkiasdešimt keturi eurai  00 ct"}]
["7.                                   ","Post-diliatacinis PTKA balionas ypač kalcifikuotoms stenozėms",",,Non compliant“ (NC) tipo PTKA balionai. Gero slydimo - speciali hidrofilinė danga. Kateterio proksimali korpuso dalis iš vientisos medžiagos (hypotube). Naudojami su 0,014 colio PTKA vielomis. Proksimalinė dalis ne daugiau1,9 F, distalinė ne daugiau 2,7 F. Baliono kampai: 16±1° - distalinė dalies, 25±1°-proksimalinė dalis. Nominalus slėgis ne mažiau 14 atm, RBP ne mažiau 20 atm, MBP ne mažiau 26 atm. 2 rentgeno kontrastiniai markeriai 1,5 mm ir 2 mm diametro balionams. Didelės rezistencijos kateterio korpuso užlinkimui, sustiprintas kateterio distalinės/proksimalinės dalies jungties segmentas. Balionai įvairių ilgių nuo 6 mm iki 30 mm ir diametrų nuo 2,00 mm iki 4,00 mm. Baliono medžiaga Duralyn ar lygiavertė atspari abrazijoms, kateterio naudojamas ilgis ne mažiau 145 cm. Kateterio galiukas lankstus, trumpas, kūgio formos, įėjimo profilis ne daugiau 0,017 colio.","vnt.",5000]
[null,null,null,null,null,"PVM suma, Eur"]
[null,null,null,null,null,"Orientacinė suma su PVM, Eur"]
[null,"Orientacinė suma su PVM, Eur žodžiais:"]
["8.                                   ","PTKA balionas rutininėms\nprocedūroms (NC monorail tipo)\n","Kateterio kūnas gerai valdomas – plieninis ar lygiavertės medžiagos. Dviguba danga – paties kateterio – hidrofobinė, balionėlio – hidrofilinė, užtikrina gerą valdymą ir praeinamumą. Diametras: proksimali dalis ne daugiau 1,7 F, distalinė dalis – ne daugiau 2,7 F. Nominalus slėgis ne mažiau 10 atm, RBP - ne  mažiau 20 atm, MBP - ne mažiau 27 atm. Balioninio kateterio išsitempimas turi būti tiksliai kontroliuojamas, baliono diametro kitimas iki 5 procentų. Įvairių diametrų nuo 2,5 mm iki 4,0 mm (diametro žingsnis 0,25 mm) ir ilgių nuo 10 mm iki 30 mm. Bendras darbinis ilgis ne mažiau kaip 140 cm. Pritaikyta 0,014 colio diametro vielai.","vnt.",5000]
[null,null,null,null,null,"PVM suma, Eur"]
[null,null,null,null,null,"Orientacinė suma su PVM, Eur"]
[null,"Orientacinė suma su PVM, Eur žodžiais:"]
["9.","NC tipo balioninis angioplastikos kateteris","Gero slydimo – distalinė sistemos dalis padengta spec. hidrofiline danga. Diametras: proksimalinė dalis ne daugiau 2 Fr, distalinė dalis – ne daugiau 2,6 F. Nominalus slėgis ne mažiau 10 atm, RBP- ne mažiau 18 - 20 atm. Du rentgeno kontrastiniai markeriai. Balionėlių ilgiai nuo 6 mm iki 20 mm,  diametrai nuo 2,25 mm iki 5,00 mm. Balioninio kateterio naudojamas ilgis ne mažesnis kaip 145 cm. Kontroliuojamo išsiplėtimo. Žemo distalinio profilio, galiuko įėjimo profilis ne storesnis nei 0,42 mm. Pritaikyta 0,014 colio diametro vielai.","vnt.",5000]
[null,null,null,null,null,"PVM suma, Eur"]
[null,null,null,null,null,"Orientacinė suma su PVM, Eur"]
[null,"Orientacinė suma su PVM, Eur žodžiais:"]
["10.","PTKA balionas stambioms kraujagyslėms ir AKJ plėsti ","Gero slydimo – spec. hidrofilinė danga. Nominalus slėgis ne mažiau 8 atm, RBP ne mažiau 16 atm. Balionėliai įvairių ilgių, nuo 15 mm iki 40 mm ir įvairių diametrų nuo 4,5 mm iki 7 mm (diametro žingsnis 0,5 mm). Balioninio kateterio naudojamas ilgis ne mažiau 140 cm, proksimalus kateterio diametras ne daugiau 2,3F, distalinis ne daugiau 3,5F. Balioninio kateterio išsitempimas turi būti tiksliai kontroliuojamas, baliono diametro kitimas iki 10 procentų. Žemo distalinio profilio ties lanksčiais rentgeno kontrastiniais markeriais. Pritaikyta 0,014 colio diametro vielai.","vnt.",2000,58.46,0.05,{"$f":"F46*1.05","v":61.383000000000003},{"$f":"E46*F46","v":116920},"Conic Vascular gamintojas, NC Clever balionas"]
[null,null,null,null,null,"PVM suma, Eur",null,null,{"$f":"I48-I46","v":5846}]
[null,null,null,null,null,"Orientacinė suma su PVM, Eur",null,null,{"$f":"E46*H46","v":122766}]
[null,"Orientacinė suma su PVM, Eur žodžiais:",null,{"$f":"suma_zodziais(I48)","v":"Vienas šimtas dvidešimt du tūkstančiai septyni šimtai šešiasdešimt šeši eurai  00 ct"}]
["11.","Labai aukšto slėgio NC tipo balioninis angioplastikos kateteris","Dvigubo sluoksnio baliono konstrukcija, tolygus baliono plėtimasis. Du rentgeno kontrastiniai markeriai baliono galuose. Diametras nuo 2,0 mm iki 3,0 mm, ilgis nuo10 mm iki 20 mm. Darbinis slėgis ne mažiau 29 atm.","vnt.",300]
[null,null,null,null,null,"PVM suma, Eur"]
[null,null,null,null,null,"Orientacinė suma su PVM, Eur"]
[null,"Orientacinė suma su PVM, Eur žodžiais:"]
["12.","PTKA viela rutininėms procedūroms","Ilgis ne mažiau 175 cm, 0,014 colio diametro. Vienos dalies konstrukcija dengta teflonu. 3±1 cm ilgio lankstus ir atraumatinis rentgeno kontrastinis galiukas. Viela lanksti ir gero praeinamumo. Tiesios ir J formos. Geras sukimo perdavimas. “Standard”, “Soft”, “Super Soft’ ir “Floppy” tipo.","vnt.",8000]
[null,null,null,null,null,"PVM suma, Eur"]
[null,null,null,null,null,"Orientacinė suma su PVM, Eur"]
[null,"Orientacinė suma su PVM, Eur žodžiais:"]
["13.","PTKA viela be markerių, polimeriniu galu","Polimerinė vientiso distalinio galo konstrukcija. Vienos dalies konstrukcija, geras sukimo perdavimas. Diametras 0,014 colio. Kietumo įvairovė: standard, intermediate, floppy, soft, super soft. Ilgis nuo 185 cm iki 300 cm. 2±0,5 cm ilgio lankstus ir atraumatinis rentgeno kontrastinis galiukas. Geras rentgeno kontrastavimas. Galo forma: J ir tiesi. Universalios: tinkančios stentavimui ir plėtimui.","vnt.",7000]
[null,null,null,null,null,"PVM suma, Eur"]
[null,null,null,null,null,"Orientacinė suma su PVM, Eur"]
[null,"Orientacinė suma su PVM, Eur žodžiais:"]
["14.","PTKA viela be markerių, spiraliniu galu","Vientisa tolygiai smailėjanti šerdies konstrukcija su rentgeno kontrastinėmis vijomis distaliniame gale. Vielos šerdis pagaminta iš plieno lydinio, tvirtesnio nei plienas. Dengtos polimeru, 0,014 colio diametro, kietumo įvairovė, vielos galiuko veikimo jėga (support) nuo 3,2±0,1 g iki 14,3±0,1 g, galiuko tvirtumas (tip load) nuo 0,8g iki 1,5g. 3±1 cm ilgio lankstus ir atraumatinis rentgeno kontrastinis galiukas. Specialus ne mažiau 30 cm hidrofilinis padengimas distalinėje dalyje užtikrina optimalų vielos slidumą, kontakte su skysčiais viela nepakeičia savo diametro. Ilgis nuo 190 cm iki 300 cm. Galo forma (Perkančiosios organizacijos pasirinkimu): J arba tiesi.","vnt.",1000]
[null,null,null,null,null,"PVM suma, Eur"]
[null,null,null,null,null,"Orientacinė suma su PVM, Eur"]
[null,"Orientacinė suma su PVM, Eur žodžiais:"]
["15.                               ","PTKA viela subtotalinėms stenozėms","Pagamintos iš platinos ir nerūdijančio plieno ar lygiaverčio lydinio spiralių, kurios viena su kita šonais nesulydytos. Vielos šerdis vienalyčio lydinio (monolitinė) tolygiam ir kontroliuojamam sukimo judesiui perduoti: operatoriui pasukus vielą 360° tiek pat pasisuka ir arterijoje esantis galiukas. Vielų storis  0,014 colio, ilgis – nuo 180 cm iki 300 cm. Galimybė prijungti vielą pratęsėją (iki 150 cm ilgio). Tiesūs ar J formos galiukai. Modifikacijos: a) universalios: galiuko kietumas nuo 0,8 g iki 1,0 g, hidrofilinis, nuo 3 cm iki 16 cm rentgeno kontrastiškas; PTFE danga proksimaliau; b) lėtinėms visiškoms okliuzijoms: galiuko kietumas nuo 3,0 g iki 12,0 g; galiukas nuo 3 cm iki 11 cm rentgeno kontrastiškas; c) lėtinėms okliuzijoms smailiu galiuku: galiuko kietumas nuo 9,0 g iki 20,0 g; galiukas 17 cm iki 20 cm rentgeno kontrastiškas; galiuko storis - ne didesnis nei 0,009 colio.","vnt.",1000,81.09,0.05,{"$f":"F66*1.05","v":85.144500000000008},{"$f":"E66*F66","v":81090},"PTCA CTO guidewires, Asahi, visi modeliai"]
[null,null,null,null,null,"PVM suma, Eur",null,null,{"$f":"I68-I66","v":4054.5000000000146}]
[null,null,null,null,null,"Orientacinė suma su PVM, Eur",null,null,{"$f":"E66*H66","v":85144.500000000015}]
[null,"Orientacinė suma su PVM, Eur žodžiais:",null,{"$f":"suma_zodziais(I68)","v":"Aštuoniasdešimt penki tūkstančiai vienas šimtas keturiasdešimt keturi eurai  50 ct"}]
["16.                               ","Hidrofilinė dviejų dalių konstrukcijos PTKA viela totalinėms ir subtotalinėms okliuzijoms","Ilgis ne mažiau 180 cm, 0,014 colio diametro. Dviejų dalių konstrukcija, dalys turi būti sujungtos tiesiogine jungtimi, virš jungties - silikonine danga. Distalinės vielos dalies šerdis, ne mažiau 400 mm turi būti pagaminta iš nitinolio (nikelis + titanas) ar lygiavertės medžiagos. Proksimalinės vielos dalies šerdis turi būti pagaminta iš standaus, nerūdijančio plieno ar lygiaverčio lydinio. 25 cm distalinio vielos galo šerdis turi būti padengta nerūdijančio plieno vijomis ir distalinė jo dalis vijomis, pagamintomis iš platinos. 25 cm ilgio distalinė vielos dalis turi būti padengta hidrofiline danga. Visa viela, išskyrus galiuką, turi būti padengta specialia, gerą slidumą garantuojančia, PTFE danga. Vielos galiuko apkrova lygi 1±0,1 g.","vnt.",1000]
[null,null,null,null,null,"PVM suma, Eur"]
[null,null,null,null,null,"Orientacinė suma su PVM, Eur"]
[null,"Orientacinė suma su PVM, Eur žodžiais:"]
["17.                               ","PTKA viela totalinėms okliuzijoms","Vientisa tolygiai smailėjanti šerdies konstrukcija su rentgeno kontrastinėmis vijomis distaliniame gale. Vielos šerdis pagaminta iš plieno ar lygiaverčio lydinio. Ne mažiau 30 cm hidrofilinė danga distalinėje dalyje užtikrina optimalų vielos slidumą, hidrofobinė danga proksimalinėje vielos dalyje užtikrina vielos tikslų pasukimą, kontaktuodama su skysčiais viela nekeičia diametro (no swelling). Papildoma polimerinė mova gale ir polimeru nedengtas 0,5±0,1cm vielos galiukas – ypatingam vielos jautrumui išlaikyti. Dengtos polimeru, 0,014 colio diametro ir nuo 190 cm iki 300 cm ilgio. Galiukas tiesus arba smailėjantis, jo diametras priklausomai nuo vielos tvirtumo taikant „step up“ metodiką nuo 0,009 iki 0,012 colio, didžiausias standumas galiuke, mažėjantis tolyn nuo jo. Vielos galiuko tvirtumas nuo 4,8 g iki 13,9 g. Vielos galiuko veikimo jėga (support) ne mažiau 8,7g.","vnt.",1000]
[null,null,null,null,null,"PVM suma, Eur"]
[null,null,null,null,null,"Orientacinė suma su PVM, Eur"]
[null,"Orientacinė suma su PVM, Eur žodžiais:"]
["18.                               ","Platinos ir nerūdijančio plieno lydinio PTKA viela","Pagamintos iš platinos ir nerūdijančio plieno ar lygiaverčio lydinio spiralių, kurios viena su kita šonais nesulydytos. Vielos šerdis vienalyčio lydinio (monolitinė) tolygiam ir kontroliuojamam sukimo judesiui perduoti: operatoriui pasukus vielą 360° tiek pat pasisuka ir arterijoje esantis galiukas. Vielų storis – 0,014 colio, ilgis nuo 180 cm iki 300 cm, galimybė prijungti vielą pratęsėją (iki 150 cm ilgio). Tiesūs ar J formos galiukai, nuo 0,5 g iki 0,7 g hidrofilinis, iki 3±1 cm ilgio rentgenokontrastiškas. PTFE danga proksimaliau, ne mažiau 20 cm lankstus galas.","vnt.",3000,57.06,0.05,{"$f":"F78*1.05","v":59.913000000000004},{"$f":"E78*F78","v":171180},"PTCA guidewires, Asahi, visi modeliai"]
[null,null,null,null,null,"PVM suma, Eur",null,null,{"$f":"I80-I78","v":8559}]
[null,null,null,null,null,"Orientacinė suma su PVM, Eur",null,null,{"$f":"E78*H78","v":179739}]
[null,"Orientacinė suma su PVM, Eur žodžiais:",null,{"$f":"suma_zodziais(I80)","v":"Vienas šimtas septyniasdešimt devyni tūkstančiai septyni šimtai trisdešimt devyni eurai  00 ct"}]
["19.                               ","Vidutinio slėgio PTKA rinkinys","PTKA manometras (slėgis ne mažiau 30 atm.). Manometro vamzdelis ne trumpesnis nei 30 cm. Metalinis (0,014 colio vielai) fiksatorius - suktukas. Y jungtukas su hemostaziniu vožtuvu. PTKA vielos įvedimo adata.","vnt.",9000,null,null,{"$f":"F82*1.05","v":0},{"$f":"E82*F82","v":0}]
[null,null,null,null,null,"PVM suma, Eur",null,null,{"$f":"I84-I82","v":0}]
[null,null,null,null,null,"Orientacinė suma su PVM, Eur"]
[null,"Orientacinė suma su PVM, Eur žodžiais:"]
["20.                               ","Aukšto slėgio PTKA rinkinys","PTKA manometras (slėgis ne mažiau 40 atm.). Metalinis (0,014 colio vielai) fiksatorius - suktukas.Y jungtukas su hemostaziniu vožtuvu. PTKA vielos įvedimo adata. ","vnt.",500]
[null,null,null,null,null,"PVM suma, Eur"]
[null,null,null,null,null,"Orientacinė suma su PVM, Eur"]
[null,"Orientacinė suma su PVM, Eur žodžiais:"]
["21.                               ","PTKA ‘Y’ jungtukas","Y-jungtukas su vieno paspaudimo uždarymo/atidarymo hemostazine membrana. Praplovimo atšaka su trijų krypčių kraniuku. Vielos įvedimo adata. Metalinis (0,014 colio vielai) fiksatorius – suktukas.","vnt.",9000]
[null,null,null,null,null,"PVM suma, Eur"]
[null,null,null,null,null,"Orientacinė suma su PVM, Eur"]
[null,"Orientacinė suma su PVM, Eur žodžiais:"]
["22.                               ","Dvigubas PTKA ‘Y’ jungtukas su hemostazinėmis membranomis","Y-jungtukas su uždarymo/atidarymo 2 hemostazinėmis membranomis ir praplovimo atšaka su trijų krypčių kraniuku.","vnt.",100]
[null,null,null,null,null,"PVM suma, Eur"]
[null,null,null,null,null,"Orientacinė suma su PVM, Eur"]
[null,"Orientacinė suma su PVM, Eur žodžiais:"]
["23.                               ","PTKA ‘Y’ jungtukas su praplovimo atšakos prailgintoju","Y-jungtukas su vienmomenčiu paspaudimo/atititraukimo hemostazine membrana. Prailginta iki 20 cm. lanksti praplovimo atšaka su trijų krypčių kraniuku. Vielos įvedimo adata. Metalinis (0,014 colio vielai) fiksatorius – suktukas.","vnt.",9000]
[null,null,null,null,null,"PVM suma, Eur"]
[null,null,null,null,null,"Orientacinė suma su PVM, Eur"]
[null,"Orientacinė suma su PVM, Eur žodžiais:"]
["24.                               ","PTKA vielos suktukas","Universalus – pagamintas iš metalo, tinkamas visoms 0,014 colio diametro vieloms, steriliame įpakavime.","vnt.",2000]
[null,null,null,null,null,"PVM suma, Eur"]
[null,null,null,null,null,"Orientacinė suma su PVM, Eur"]
[null,"Orientacinė suma su PVM, Eur žodžiais:"]
["25.                               ","Angiografinė punkcinė adata","Ilgis nuo 50 mm iki 70 mm, diametras 18G, 19G ir 20 G. Specialios plonasienės konstrukcijos suteikiančios adatai lankstumo. Maksimalus galimas vielos - pravedėjo diametras 0,038 colio. Adatos plokštuma pirštui atremti pagaminta iš skaidrios bespalvės permatomos medžiagos jungtyje suformuotas žymeklis - plokštuma pirštui atremti ir punkcijos krypčiai pasirinkti.","vnt.",5000]
[null,null,null,null,null,"PVM suma, Eur"]
[null,null,null,null,null,"Orientacinė suma su PVM, Eur"]
[null,"Orientacinė suma su PVM, Eur žodžiais:"]
["26.                               ","Introdiuseris su atšaka plovimui ir sklende, mini viela","Distalinis galas sukietintas ir turi nupjauto kūgio formą. Įvairių diametrų  nuo 4F iki 11F. Ne mažiau 11 cm ilgio. Hemostazinis vožtuvas. Ne mažiau 45 cm 0,035 colio mini viela. ","vnt.",5000,7.98,0.05,{"$f":"F110*1.05","v":8.3790000000000013},{"$f":"E110*F110","v":39900},"Oscor gamintojas, Adelante Sigma"]
[null,null,null,null,null,"PVM suma, Eur",null,null,{"$f":"I112-I110","v":1995.0000000000073}]
[null,null,null,null,null,"Orientacinė suma su PVM, Eur",null,null,{"$f":"E110*H110","v":41895.000000000007}]
[null,"Orientacinė suma su PVM, Eur žodžiais:",null,{"$f":"suma_zodziais(I112)","v":"Keturiasdešimt vienas tūkstantis aštuoni šimtai devyniasdešimt penki eurai  00 ct"}]
["27.","Introduseris","Specialios formos introduseriai užtikrinantys mažesnį krešumą: dydžiai 4,5F, 5,5F, 6,5F, 7,5F, 8,5F, ilgis 11±1 cm, 0,038 colio vielai. Introduseriai su rengenokontrastiniu galiuku: dydžiai nuo 4 F iki 8 F, ilgiai nuo 11 cm iki 23 cm, vielos ilgiai 50±2 cm, 80±2 cm, diametras nuo 0,035 colio iki 0,038 colio. Intoduseriai su plona adata  nuo20G iki 21G, adatos ilgis iki 4 cm, vielos diametras nuo 0,018 colio iki 0,025 colio. Dydžiai nuo 4F iki 6F, ilgiai 7±0,5 cm, 11±0,5 cm, 23±0,5 cm. Visi introduseriai su 3 padėčių sklende. Introduserio fiksatorius besisukantis apie savo ašį. Įmovos pagal dydį yra koduotos spalva.","vnt.",5000,7.98,0.05,{"$f":"F114*1.05","v":8.3790000000000013},{"$f":"E114*F114","v":39900},"Oscor gamintojas, Adelante Sigma"]
[null,null,null,null,null,"PVM suma, Eur",null,null,{"$f":"I116-I114","v":1995.0000000000073}]
[null,null,null,null,null,"Orientacinė suma su PVM, Eur",null,null,{"$f":"E114*H114","v":41895.000000000007}]
[null,"Orientacinė suma su PVM, Eur žodžiais:",null,{"$f":"suma_zodziais(I116)","v":"Keturiasdešimt vienas tūkstantis aštuoni šimtai devyniasdešimt penki eurai  00 ct"}]
["28.","Introdiuseris a. radialis kateterizacijai","Susidedantis iš punkcinės adatos, vielos pravedėjo ir nuo 4F iki 6 F introdiuserio. Padengtas hidrofiline danga. Introdiuserio ilgis: 7±2 cm, 12±2 cm ir 25±2 cm. Vielos pravedėjai 0,025 colio. Vielos ilgiai 50±5 cm ir 80±5 cm, galas tiesus.","vnt.",10000,7.98,0.05,{"$f":"F118*1.05","v":8.3790000000000013},{"$f":"E118*F118","v":79800},"Oscor gamintojas, Adelante Sigma"]
[null,null,null,null,null,"PVM suma, Eur",null,null,{"$f":"I120-I118","v":3990.0000000000146}]
[null,null,null,null,null,"Orientacinė suma su PVM, Eur",null,null,{"$f":"E118*H118","v":83790.000000000015}]
[null,"Orientacinė suma su PVM, Eur žodžiais:",null,{"$f":"suma_zodziais(I120)","v":"Aštuoniasdešimt trys tūkstančiai septyni šimtai devyniasdešimt eurų  00 ct"}]
["29.","Indrodiuseris radialinėms arterijoms su hidrofiline danga","Įmovos galas plonėjantis distaliniame gale, pagerinantis dilatatoriaus – įmovos praėjimą ir sumažinatis rezistenciją punkcijos metu. Įmova padengta hidrofiline danga, ilgis 16±2 cm, 25±2 cm, vidaus diametras: nuo 5F iki 6 F (koduota pagal spalvą). Tinkančios 0,021 colio ir 0,025 colio vielai. Mini vielos ilgis nuo 45 cm iki 80 cm, galas tiesus. Adata su grioveliu, aptraukta polietileno apvalkalu pagal “Flach Back” technologiją: 0,9 x 32 mm. Komplektuojami su švirkštu.","vnt.",10000,7.98,0.05,{"$f":"F122*1.05","v":8.3790000000000013},{"$f":"E122*F122","v":79800},"Oscor gamintojas, Adelante Sigma"]
[null,null,null,null,null,"PVM suma, Eur",null,null,{"$f":"I124-I122","v":3990.0000000000146}]
[null,null,null,null,null,"Orientacinė suma su PVM, Eur",null,null,{"$f":"E122*H122","v":83790.000000000015}]
[null,"Orientacinė suma su PVM, Eur žodžiais:",null,{"$f":"suma_zodziais(I124)","v":"Aštuoniasdešimt trys tūkstančiai septyni šimtai devyniasdešimt eurų  00 ct"}]
["30.","Introdiuseris - nukreipėjas intervencinėms procedūroms","Švelni, smailėjanti, atraumatinė dilatatoriaus viršūnėlė (2,0±0,5 cm, 5,0±0,5 cm atitinkamai 45±5 cm, 65±5 cm, 90±5 cm ilgio sistemų). Distalinė sistemos dalis (5±1 cm, 15±1 cm, 35±1 cm atitinkamai 45±5 cm, 65±5 cm, 90±5 cm ilgio sistemų) padengta spec. hidrofiline danga. Integruotas aukso rengtenokontrastinis markeris 5 mm nuo distalinio sistemos galo. PTFE vidinė sistemos danga. Nerūdijančio plieno vijų vidurinė danga, išorinė - nailono danga. Hemostatinis vožtuvas su “cross cut” (kryžminio pjovimo) silikoniniu disku. Tinkamas naudoti su 0,038 colio viela. Diametrai: nuo6 F iki 7 F. Sistemos ilgiai: 45±5 cm, 65±5 cm, 90±5 cm. Distalinio galo fomos: tiesus, “hockey stick”, “multipurpose”, RDC, LIMA.\n","vnt.",100]
[null,null,null,null,null,"PVM suma, Eur"]
[null,null,null,null,null,"Orientacinė suma su PVM, Eur"]
[null,"Orientacinė suma su PVM, Eur žodžiais:"]
["31.","Didelio diametro kraujagyslių introdiuseris","Diametras nuo 10F iki 18F. Ilgiai nuo 30 cm iki 45 cm. Su rentgenokontrastiniu markeriu gale. Įvedami su 0,035 colio ir 0,038 colio diametro viela. Su hemostaziniu vožtuvu ir diliatatoriumi.","vnt.",200]
[null,null,null,null,null,"PVM suma, Eur"]
[null,null,null,null,null,"Orientacinė suma su PVM, Eur"]
[null,"Orientacinė suma su PVM, Eur žodžiais:"]
["32.","Komplektas a.radialis kateterizacijai","Susidedantis iš punkcinės adatos, vielos pravedėjo ir 6F introdiuserio.\nIntrodiuserio įmovos galas plonėjantis distaliniame gale, pagerinantis dilatatoriaus – įmovos praėjimą ir sumažinantis rezistenciją punkcijos metu. Ilgiai: 4±1 cm, 7±1cm, 10±1 cm. Tinkantys 0,018 colio ir 0,025 colio vielai. Mini viela: ilgis nuo 40 cm iki 50 cm, galas tiesus.\n","vnt.",9000,7.98,0.05,{"$f":"F134*1.05","v":8.3790000000000013},{"$f":"E134*F134","v":71820},"Oscor gamintojas, Adelante Sigma"]
[null,null,null,null,null,"PVM suma, Eur",null,null,{"$f":"I136-I134","v":3591.0000000000146}]
[null,null,null,null,null,"Orientacinė suma su PVM, Eur",null,null,{"$f":"E134*H134","v":75411.000000000015}]
[null,"Orientacinė suma su PVM, Eur žodžiais:",null,{"$f":"suma_zodziais(I136)","v":"Septyniasdešimt penki tūkstančiai keturi šimtai vienuolika eurų  00 ct"}]
["33.","PTKA nukreipėjas Nr. 1","Multisegmentinė konstrukcija, suteikianti gerą judesio kontrolę ir pozicijos stabilumą. Galiukas turi būti labai minkštas ir rentgeno kontrastinis. JR; JL; AL; AR; MP, LCB, RCB, IM, EG, HS, SBS (30, 35, 40). Didelio vidinio diametro: 5F ne mažiau 0,058 colio, 6F ne mažiau 0,071 colio, 7F ne mažiau 0,081 colio, 8F ne mažiau 0,091colio. Ilgis ne mažiau 100 cm.","vnt.",1000,49.23,0.05,{"$f":"F138*1.05","v":51.691499999999998},{"$f":"E138*F138","v":49230},"Alvimedica gamintojas, AlviGuide Blus Plus kateteris"]
[null,null,null,null,null,"PVM suma, Eur",null,null,{"$f":"I140-I138","v":2461.5}]
[null,null,null,null,null,"Orientacinė suma su PVM, Eur",null,null,{"$f":"E138*H138","v":51691.5}]
[null,"Orientacinė suma su PVM, Eur žodžiais:",null,{"$f":"suma_zodziais(I140)","v":"Penkiasdešimt vienas tūkstantis šeši šimtai devyniasdešimt vienas euras  50 ct"}]
["34.","PTKA nukreipėjas Nr. 2","Multisegmentinė konstrukcija. Galiukas turi būti minkštas ir rentgenokontrastinis: Jl, JCL, XB, XBLAD, AL,XBRCA, JR, XBR, JCR, AR, NR, H-stick, JFL, JFR, RB, Barbeau, RBL, MPA, LCB, RCB. Didelio vidinio diametro: 5F ne mažiau 0,056 colio, 6F ne mažiau 0,072 colio, 7F ne mažiau 0,078 colio, 8F ne mažiau 0,088 colio. Ilgis ne mažiau 100 cm.","vnt.",1000,49.23,0.05,{"$f":"F142*1.05","v":51.691499999999998},{"$f":"E142*F142","v":49230},"Alvimedica gamintojas, AlviGuide Blue Plus kateteris"]
[null,null,null,null,null,"PVM suma, Eur",null,null,{"$f":"I144-I142","v":2461.5}]
[null,null,null,null,null,"Orientacinė suma su PVM, Eur",null,null,{"$f":"E142*H142","v":51691.5}]
[null,"Orientacinė suma su PVM, Eur žodžiais:",null,{"$f":"suma_zodziais(I144)","v":"Penkiasdešimt vienas tūkstantis šeši šimtai devyniasdešimt vienas euras  50 ct"}]
["35.","PTKA kateteris nukreipėjas","Multisegmentinė konstrukcija. Galiukas turi būti minkštas ir rentgenokontrastinis. JR; JL; JCL; JCR; AL; AR; MP, LCB, RCB, RDC; IMA, NOTO; HS, EBU, 3D; ERAD ir kitos kreivės. Didelio vidinio diametro: 5F ne mažiau 0,058 colio, 6F ne mažiau 0,071 colio, 7F ne mažiau 0,081 colio, 8F ne mažiau 0,090 colio. Ilgis ne mažiau 100 cm. Visų kreivių kateteriai turi turėti šonines angas (side-holes) papildomai perfuzijai procedūros metu.","vnt.",10000,49.23,0.05,{"$f":"F146*1.05","v":51.691499999999998},{"$f":"E146*F146","v":492299.99999999994},"Alvimedica gamintojas, AlviGuide Blus Plus kateteris"]
[null,null,null,null,null,"PVM suma, Eur",null,null,{"$f":"I148-I146","v":24615.000000000058}]
[null,null,null,null,null,"Orientacinė suma su PVM, Eur",null,null,{"$f":"E146*H146","v":516915}]
[null,"Orientacinė suma su PVM, Eur žodžiais:",null,{"$f":"suma_zodziais(I148)","v":"Penki šimtai šešiolika tūkstančių devyni šimtai penkiolika eurų  00 ct"}]
["36.","Specialios paskirties PTKA nukreipėjas","Multisegmentinė konstrukcija,. Galiukas turi būti minkštas ir rentgenokontrastinis. ALLRIGHT; VODA LEFT; KIMNY; MUTA LEFT; Q-CURVE; CLS; MANN; IMC; KIESZ ir kiti. Didelio vidinio diametro: 5F ne mažiau 0,058 colio, 6F ne mažiau 0,070 colio, 7F ne mažiau 0,081 colio, 8F ne mažiau 0,091 colio. Ilgis nuo 55cm iki 100 cm.","vnt.",10000]
[null,null,null,null,null,"PVM suma, Eur"]
[null,null,null,null,null,"Orientacinė suma su PVM, Eur"]
[null,"Orientacinė suma su PVM, Eur žodžiais:"]
["37.","Koronarinis kateteris nukreipėjas, pritaikytas procedūroms per a. radialis","Dydis: 5F, 6F, 7F. Specialios modifikacijos procedūroms per a. radialis. Ilgis nuo 90 cm iki 100 cm. Geras pralaidumas: >1000 PSI su šoninėmis skylėmis ir be jų. Didelio vidinio diametro: 5F ne mažiau 0,058 colio, 6F ne mažiau 0,071 colio, 7F ne mažiau 0,081 colio. JR; JL; AL; AR; MP,  ESU Galiukas turi būti labai minkštas ir rentgenokontrastinis. Multisegmentinė konstrukcija.","vnt.",1000]
[null,null,null,null,null,"PVM suma, Eur"]
[null,null,null,null,null,"Orientacinė suma su PVM, Eur"]
[null,"Orientacinė suma su PVM, Eur žodžiais:"]
["38.","Hidrofilinis koronarinis kateteriai nukreipėjas","Kateteris nukreipėjas dengtas hidrofiline danga per visą ilgį. Išorinis poliamido sluoksnis užtikrina gerą kateterio formos išlaikymą. Kateteris didelio vidinio diametro, sąlygojančio aukštą skysčio srovės pralaidumą: 5F  ne mažiau 0,058 colio/1,47 mm; 6F ne mažiau 0,071 colio/1,80 mm; 7Fne mažiau 0,082 colio/2,08 mm; 8F ne mažiau 0,091 colio/2,31 mm, 1:1 sukimo kontrolė, dydžiai: 5F; 6F; 7F; 8F, ilgis: ne mažiau100 cm. Modifikacijų įvairovė:  AL- 0,75; 1,0; 1,5; 2,0; 3,0; AR- 1,0; 2,0;  JL- 3,0; 3,5; 4,0; 4,5; 5,0; 6,0; JR- 3,0; 3,5; 4,0; 4,5; 5,0; 6,0; EBU- 3,0; 3,25; 3,5; 3,75; 4,0; 4,25; 4,5; 4,75; 5,0; XBRCA- 3,0; 3,5; 3,75; 4,0; 4,25; 4,5; MPA; HS; IM; LCB&RCB; TIG – 3,0; 3,5; 4,0; 4,5; 5.","vnt.",1000]
[null,null,null,null,null,"PVM suma, Eur"]
[null,null,null,null,null,"Orientacinė suma su PVM, Eur"]
[null,"Orientacinė suma su PVM, Eur žodžiais:"]
["39.","PTKA nukreipėjo prailgintojas","Dydis 6F (5F in 6F) 2 mm, ID 1,45 mm, OD 1,68 mm. Distalinio galo ilgis ne mažiau 25 cm. Proksimalinio galo tipas – plienas ‘’hypotube’’. Padengimas “Bioslide‘‘polimeras“. Apykaklės tipas: iš plieno, įspaustas polimere.","vnt.",1000]
[null,null,null,null,null,"PVM suma, Eur"]
[null,null,null,null,null,"Orientacinė suma su PVM, Eur"]
[null,"Orientacinė suma su PVM, Eur žodžiais:"]
["40.","Diagnostinis koronarinis kateteris","Dydis: nuo 4F iki 7F. Ilgiai: 50±2 cm, 60±2 cm; 65±2 cm, 70 ±2cm, 80±2 cm; 100±2 cm, 125±2 cm. Viela nuo 0,035 colio iki 0,038 colio. Geras pralaidumas: ne mažiau 1200 atm. Modifikacijos: JL(3,5, 4, 4,5, 5), JR (1,5, 2,0, 2,5, 3,0, 3,5, 4, 4,5, 5, 6,0), JR 3,5, JR 4,0, JR 5,0, JR 6,0 MOD; JR 3,5 ST; AL (1, 2, 3,4), AR (1, 2, 3, MOD), LCB, RCB, Pediatriniai, PS (Pigtail straight); Multi (A2, B2, A1, B1) su šoninėmis skylėmis ir be, PA (Pigtail angled145; Pigtail angled 155), IM, Brachial, SON, IMLBR1, IMLBR2, LBR1, LBR2, LBR3, RBR. Didelio vidinio diametro: 4F ne mažiau 0,042 colio (1,07 mm), 5F ne mažiau 0,046 colio (1,17 mm), 5F ne mažiau 0,052 colio (1,32 mm) didelio pralaidumo, 6F ne mažiau 0,054 colio (1,37mm), 6F ne mažiau 0,059 colio (1,49mm) didelio pralaidumo. Slėgis ne mažiau 1200 PSI.","vnt.",5000,9.0500000000000007,0.05,{"$f":"F166*1.05","v":9.5025000000000013},{"$f":"E166*F166","v":45250},"Alvision, Alvimedica, visi modeliai"]
[null,null,null,null,null,"PVM suma, Eur",null,null,{"$f":"I168-I166","v":2262.5000000000073}]
[null,null,null,null,null,"Orientacinė suma su PVM, Eur",null,null,{"$f":"E166*H166","v":47512.500000000007}]
[null,"Orientacinė suma su PVM, Eur žodžiais:",null,{"$f":"suma_zodziais(I168)","v":"Keturiasdešimt septyni tūkstančiai penki šimtai dvylika eurų  50 ct"}]
["41.","Specialus diagnostinis koronarinis kateteris per a.radialis","Atsparumas užlinkimui – kateterio sienelėje integruotas tinklas, pagamintas iš besikryžiuojančių, dvigubų nerūdijančio plieno vijų. Išorinis diametras nuo 4F iki 6 F. Galiukas atraumatinis, labai minkštas, rentgenokontrastinis. Įvairaus ilgio (65±2 cm, 80±2 cm, 90±2 cm, 100±2 cm, 110±2 cm, 120±2 cm). Slėgis ne mažiau 1000 PSI. Anatominės modifikacijos: AL-1, 2, 3; AR- 1, 2, 3; AR JP; Judkins left – 3,5, 4,0, 5,0, 6,0; Judkins right- 3,5, 4,0, 5,0, 6,0; Straight pigtail; Angled pigtail 145º,155º, round; Curve 2,5, 3,0, 3,5, 4,0;  Internal mammary- Short tip, JT tip; Bypass – left, right; Brachial – Tiger 4 cm; Tiger II;  BLK, Amplatz left, right; Multipurpose; 3D. ","vnt.",15000,null,null,{"$f":"F170*1.05","v":0},{"$f":"E170*F170","v":0}]
[null,null,null,null,null,"PVM suma, Eur",null,null,{"$f":"I172-I170","v":0}]
[null,null,null,null,null,"Orientacinė suma su PVM, Eur",null,null,{"$f":"E170*H170","v":0}]
[null,"Orientacinė suma su PVM, Eur žodžiais:",null,{"$f":"suma_zodziais(I172)","v":"Nulis eurų 00 ct"}]
["42.","Diagnostinis angiografinis kateteris, sąlygojantis aukštą skysčio srovės pralaidumą","Sienelės struktūra trijų sluoksnių. Vidinis sluoksnis – pagamintas iš nerūdijančio plieno vijų, užtikrinantis gerą judesio kontrolę 1:1 ir pozicijos stabilumą nuo distalaus iki proksimalaus galo. Distalinis galiukas minkštas ir atraumatinis. Nominalus diametras pigtail ir selektyviam kateteriui: 4F vidinis diametras ne mažiau 0,042 colio, skysčio pralaidumas ne mažiau16.7ml/s, 5F vidinis diametras ne mažiau 0,047 colio, skysčio pralaidumas ne mažiau 21.3ml/s, 6F vidinis diametras ne mažiau 0,057 colio, skysčio pralaidumas ne mažiau 35.0 ml/s. Selektyvių kateterių ilgis ne mažiau 100 cm, Pigtail kateterių ilgis ne mažiau 110 cm. Kateteriai įvairių modifikacijų: Judkins Left 3,5; 4,0; 4,5; 5,0; 6,0; Judkins Right 3,5; 4,0; 4,5; 5,0; 6,0; 3 DRC (Williams), SRC; Amplatz Left I; II; III;  Amplatz Right I; II; Coronary Bypass Left; Coronary Bypass Right; Internal Mammary, Multipurpose A-1; A-2; B-1; B-2; Sones I, II, III, su skylutėmis šonuose - I PP, II PP; III PP; El Gamal Bypass I  PP, II PP, Castillo I, II, III; Pigtail- tiesus, 145˚ ir 155˚.","vnt.",1000]
[null,null,null,null,null,"PVM suma, Eur"]
[null,null,null,null,null,"Orientacinė suma su PVM, Eur"]
[null,"Orientacinė suma su PVM, Eur žodžiais:"]
["43.","Koronarinis kateteris vaikams","4-5 F dydžio, JL2; JL2,5; JR2; JR2,5 formų.","vnt.",300]
[null,null,null,null,null,"PVM suma, Eur"]
[null,null,null,null,null,"Orientacinė suma su PVM, Eur"]
[null,"Orientacinė suma su PVM, Eur žodžiais:"]
["44.","Diagnostinis kateteris vaikams","Kateteriai skirti širdies ertmių ir stambiųjų kraujagyslių diagnostiniams tyrimams. Įvairių modifikacijų. Išorinis diametras: 4F, 5F. Ilgis 65-125cm. Dviejų modifikacijų: su distaline skyle ir su distaline ir 2 šoninėmis skylėmis","vnt.",100]
[null,null,null,null,null,"PVM suma, Eur"]
[null,null,null,null,null,"Orientacinė suma su PVM, Eur"]
[null,"Orientacinė suma su PVM, Eur žodžiais:"]
["45.","Diagnostinis periferinis kateteris","Išorinis diametras nuo 4F iki 5F. Vidinis diametras 4F ne mažiau (0,040 colio/1,02 mm); 5F ne mažiau (0,046 colio/1,17 mm). Ilgiai: 65±2 cm, 90±2cm, 110±2 cm ir 125 ±2cm. Viela: nuo 0,035colio iki 0,038 colio. Modifikacijos: MOTARJEME, MOTARJEME CANE, MULTIPURPOSE A1, MW2, NEWTON (1, 2, 3, 4) OSBORN, RENAL DOUBLE CURVE, REUTER, RBI, RIM, SHEPHERD HOOK (0,8, 1), SIMMONS (1,2), STRAIGHT SELECTIVE, VERTEBRAL, SHEPHERD FLUSH, ULTRA BOLUS FLUSH, MOD. BOLUS FLUSH, PIG FLUSH, MOD. HOOK FLUSH, BENSTON (1,2), BERENSTEIN, COBRA (1,2) HH (1,3), HOCKEY STICK, HOOK (0,8, 1), KA2, MANI, MIKAELSSON, MOD. CEREBRAL, MOD. HOOK (1,2,3), MOD. SIMMONS.","vnt.",100]
[null,null,null,null,null,"PVM suma, Eur"]
[null,null,null,null,null,"Orientacinė suma su PVM, Eur"]
[null,"Orientacinė suma su PVM, Eur žodžiais:"]
["46.","Diagnostinis kateteris","Didelio vidinio diametro: 4F ne mažiau 0,035 colio, 5F ne mažiau 0,045 colio, 6F ne mažiau 0,056 colio. Atsparumas užlinkimui. Įvairių anatominių modifikacijų (JR, JL, AL, AR, MPA, MPB, IMA, Tiger1, TWIST, 3RDC, PIG nuo 5 iki 8 šoninių skylių, MIK, RS, ANCT, STCT, YSR, H1, SHK, STCT, RH, COBRA). Stabili pozicija įvedus. Ilgis 65-125cm.","vnt.",500]
[null,null,null,null,null,"PVM suma, Eur"]
[null,null,null,null,null,"Orientacinė suma su PVM, Eur"]
[null,"Orientacinė suma su PVM, Eur žodžiais:"]
["47.","Specialus diagnostinis kateteris ventrikulografijai  per a. radialis atlikti","Specialiai pritaikyti procedūroms per a. radialis. Išorinis diametras nuo 4 F iki 6F, ilgu ir trumpu PIG fromos, 2 cm arba 4 cm galiuku, ne mažiau 6 šoninių skylių. Ilgiai: 110±2 cm ir 125±2cm. Viela 0,038 colio.","vnt.",500]
[null,null,null,null,null,"PVM suma, Eur"]
[null,null,null,null,null,"Orientacinė suma su PVM, Eur"]
[null,"Orientacinė suma su PVM, Eur žodžiais:"]
["48.","Padidinto stangrumo specialios paskirties viela širdies\nkateterizacijoms\n","Storis 0,035 colio, ilgis nuo 180 cm iki 260 cm. Amplatz Super Stiff tipo.\n3 cm ir 6 cm, J formos minkštas galiukas. Viela ištisinė, be spiralinio viršutinio sluoksnio, padengta hidrofiline danga.\n","vnt.",500]
[null,null,null,null,null,"PVM suma, Eur"]
[null,null,null,null,null,"Orientacinė suma su PVM, Eur"]
[null,"Orientacinė suma su PVM, Eur žodžiais:"]
["49.","Padidinto stangrumo diagnostinė viela – gidas","Storis: 0,020 colio, 0,025 colio, 0,035 colio, 0,038 colio. Vielos šerdis pagaminta iš nitinolio (nikelis+titanas) ar lygiaverčio lydinio užtikrinantis elastingumą. Vienos dalies konstrukcija. Šerdis padengta poliuretano apvalkalu su hidrofiline danga, užtikrinanti gerą slidimą bei mažinatis kraujo adheziją. 1:1 posūkio užtikrinimas. Vielos galiuko modifikacijos: 45°kampu, “J” 2mm, tiesus. Viršūnės smailėjimo ilgis: 1 cm, 3cm, 5 cm."]
["49.1.",null,"Ilgis: 150 cm, 180 cm","vnt.",500]
["49.2.",null,"Ilgis: 260 cm","vnt.",500]
[null,null,null,null,null,"Orientacinė suma be PVM, Eur"]
[null,null,null,null,null,"PVM suma, Eur"]
[null,null,null,null,null,"Orientacinė suma su PVM, Eur"]
[null,"Orientacinė suma su PVM, Eur žodžiais:"]
["50.","Vientisas kietas metalinis pravedėjas, dengtas hidrofiline danga su suminkštintu bei lenktu galu Back-up-Meier tipo","Diametras: 0,35 mm. Ilgis: 300 cm.","vnt.",250]
[null,null,null,null,null,"PVM suma, Eur"]
[null,null,null,null,null,"Orientacinė suma su PVM, Eur"]
[null,"Orientacinė suma su PVM, Eur žodžiais:"]
["51.","Prailginta nukreipianti hidrofilinė nitinolinė viela periferinei angioplastikai ir selektyviam kateterių bei mikrokateterių nukreipimui","Ilgiai 220±2 cm, 260±2 cm, 300±2 cm. Diametrai: 0,018 colio, 0,025 colio, 0,032 colio, 0,035 colio ir 0,038 colio. Vielos šerdis pagaminta iš nitinolio (nikelis+titanas) ar lygiaverčio lydinio užtikrinančio elastingumą. Vienos dalies konstrukcija. Šerdis padengta poliuretano apvalkalu su integruotu volframu. Padengta išorine specialia “M” hidrofiline danga. 1:1 posūkio užtikrinimas. Viršūnės modifikacijos: tiesus ar J tipo. Viršūnės smailėjimo ilgis: 1 cm ir 3cm.","vnt.",500]
[null,null,null,null,null,"PVM suma, Eur"]
[null,null,null,null,null,"Orientacinė suma su PVM, Eur"]
[null,"Orientacinė suma su PVM, Eur žodžiais:"]
["52.","Prailginta hidrofilinė viela diagnostiniams kateteriams","Padengtos specialia hidrofiline danga, užtikrinančia gerą slydimą. 1:1 posūkio užtikrinimas. Ilgiai: nuo 220 cm iki 260 cm. “J” formos ir tiesiu galiuku. 0,18 colio, 0,25 colio, 0,35 colio, 0,38 colio.","vnt.",500]
[null,null,null,null,null,"PVM suma, Eur"]
[null,null,null,null,null,"Orientacinė suma su PVM, Eur"]
[null,"Orientacinė suma su PVM, Eur žodžiais:"]
["53.","Padidinto lankstumo viela pravedėjas (gidas)","Ilgis: 50±2 cm, 80±2 cm, 120±2 cm, 150±2 cm, 180±2 cm. Storis: 0,018 colio, 0,025 colio, 0,032 colio, 0,035 colio, 0,038 colio. Vielos šerdis pagaminta iš nitinolio (nikelis+titanas) ar lygiaverčio lydinio užtikrinančio elastingumą. Vienos dalies konstrukcija. Šerdis padengta poliuretano apvalkalu su hidrofiline danga užtikrinanti gerą slydimą bei mažinatis kraujo adheziją. 1:1 posūkio užtikrinimas. Volframas poliuretano apvalkale, užtikrinantis gerą vielos matomumą procedūros metu. Viršūnės modifikacijos: tiesus,  kampu, J (3mm)  kampu, „Bolia“. Viršūnės smailėjimo ilgis: 1 cm, 3 cm, 5 cm, 8 cm.","vnt.",5000," "]
[null,null,null,null,null,"PVM suma, Eur"]
[null,null,null,null,null,"Orientacinė suma su PVM, Eur"]
[null,"Orientacinė suma su PVM, Eur žodžiais:"]
["54.","Diagnostinė hidrofilinė  viela","Vienos dalies nitinolo ar lygiaverčio lydinio hidrofilinė viela dengta PTFE danga. Ilgiai 80±5, 120±5, 150±5, 180±5 cm. Storis: 0,018 colio, 0,025 colio, 0,035 colio, 0,038 colio. Dengtos teflonu - gero slidumo. J ir tiesios formos, 0,035 colio diametro.","vnt.",2000]
[null,null,null,null,null,"PVM suma, Eur"]
[null,null,null,null,null,"Orientacinė suma su PVM, Eur"]
[null,"Orientacinė suma su PVM, Eur žodžiais:"]
["55.","Ilga diagnostinė hidrofilinė viela","Vienos dalies nitinolo ar lygiaverčio lydinio hidrofilinė viela dengta PTFE danga. Ilgis 260±5 cm. Storis: 0,018 colio, 0,025 colio, 0,035 colio, 0,038 colio. Dengtos teflonu - gero slidumo. J ir tiesios formos.","vnt.",400]
[null,null,null,null,null,"PVM suma, Eur"]
[null,null,null,null,null,"Orientacinė suma su PVM, Eur"]
[null,"Orientacinė suma su PVM, Eur žodžiais:"]
["56.","Heparinu dengta diagnostinė viela","0,014 colio, 0,018 colio, 0,021 colio, 0,035 colio, 0.038 colio diametro, nuo 80 cm iki 260 cm ilgio. Dengtos teflonu ir heparinu. Fiksuota arba mobili šerdis. 1,5 ir 3.0 mm J formos arba tiesus galas.","vnt.",500]
[null,null,null,null,null,"PVM suma, Eur"]
[null,null,null,null,null,"Orientacinė suma su PVM, Eur"]
[null,"Orientacinė suma su PVM, Eur žodžiais:"]
["57.","Viela diagnostiniams kateteriams","Vielos galiukas privalo išlaikyti formą ir turėti „luer lock“ besisukantį portą, užtikrinantį vielos galiuko apsaugą. 800 mm ir 1200 mm vielos su markeriais, diametras 0,18 colio. Pirmas markeris yra 20 cm nuo kateterio galiuko, kiti kas 10 cm. Vielų pakuotės kodavimas pagal spalvas (diametro kodavimas pagal spalvas). Diametras: 0,014 colio, 0,018 colio, 0,021 colio, 0,035 colio; 0,038 colio. Ilgiai: 80±2 cm, 145±2 cm, 150±2 cm, 180±2 cm, 260±2 cm. Dengtos teflonu ir heparinu. Fiksuota arba mobili šerdis. J ir tiesios formos galas ”J tipo“ ir tiesaus galiuko ilgiai nuo1,5 mm iki 3.0 mm.","vnt.",15000]
[null,null,null,null,null,"PVM suma, Eur"]
[null,null,null,null,null,"Orientacinė suma su PVM, Eur"]
[null,"Orientacinė suma su PVM, Eur žodžiais:"]
["58.","Viela - adapteris, mažinantis kraujavimą","Ne mažesnis, nei 2,2 mm dydis. Sterilus, vienkartinis, universalus.","vnt.",100,1.74,0.05,{"$f":"F241*1.05","v":1.827},{"$f":"E241*F241","v":174},"Needleless adapter, SCW gamintojas, SCW kataloge kodas 507304"]
[null,null,null,null,null,"PVM suma, Eur",null,null,{"$f":"I243-I241","v":8.6999999999999886}]
[null,null,null,null,null,"Orientacinė suma su PVM, Eur",null,null,{"$f":"E241*H241","v":182.7}]
[null,"Orientacinė suma su PVM, Eur žodžiais:",null,{"$f":"suma_zodziais(I243)","v":"Vienas šimtas aštuoniasdešimt du eurai  70 ct"}]
["59.","PTA balioninis kateteris arterijoms","Naudojami su 0,018 colio PTA vielomis. Žemo profilio: proksim./distal. ne daugiau 0,021 colio. Labai aukšto slėgio RBP ne mažiau 14-16 atm., MBP ne mažiau 20 atm. 2 rentgenokontrastiniai markeriai. Kateterių ilgiai nuo 75 cm iki 180 cm. Balionų diametrai nuo 2 mm iki 9 mm, ilgiai nuo 20 mm iki 280 mm.","vnt.",50]
[null,null,null,null,null,"PVM suma, Eur"]
[null,null,null,null,null,"Orientacinė suma su PVM, Eur"]
[null,"Orientacinė suma su PVM, Eur žodžiais:"]
["60.","Intravaskulinio ultragarso (IVUS) kateteris vainikinėms arterijoms","IVUS kateteriai, tinkantys VOLCANO THERAPEUTICS INC sistemai.\nSuderinamas su 5F kateteriu pravedėju. Įėjimo profilis ne daugiau 2,9F. Aukštos skiriamosios gebos 20 MHz transdiuseris su signalo filtravimu. Pritaikytas 0,014 colio vielai.\n","vnt.",500]
[null,null,null,null,null,"PVM suma, Eur"]
[null,null,null,null,null,"Orientacinė suma su PVM, Eur"]
[null,"Orientacinė suma su PVM, Eur žodžiais:"]
["61.","Intravaskulinio ultragarso (IVUS) kateteris periferinėms kraujagyslėms","IVUS kateteriai, tinkantys VOLCANO THERAPEUTICS INC sistemai.\nSuderinamas su 6F kateteriu pravedėju. Aukštos skiriamosios gebos 20 MHz transdiuseris su signalo filtravimu. Įėjimo profilis ne daugiau 3,4F. Pritaikytas 0,018 colio vielai. Tinkantis iki 24 mm diametro kraujagyslėms.\n","vnt.",50]
[null,null,null,null,null,"PVM suma, Eur"]
[null,null,null,null,null,"Orientacinė suma su PVM, Eur"]
[null,"Orientacinė suma su PVM, Eur žodžiais:"]
["62.","Intravaskulinio ultragarso (IVUS) kateteris aortai","IVUS kateteriai, tinkantys VOLCANO THERAPEUTICS INC sistemai. Suderinamas su 8F introdiuseriu. Įėjimo profilis ne daugiau 8,2F. Aukštos skiriamosios gebos 20 MHz transdiuseris su signalo filtravimu. Pritaikytas 0,038 colio vielai. Tinkantis iki 60 mm diametro kraujagyslėms.","vnt.",50]
[null,null,null,null,null,"PVM suma, Eur"]
[null,null,null,null,null,"Orientacinė suma su PVM, Eur"]
[null,"Orientacinė suma su PVM, Eur žodžiais:"]
["63.","Sterilus maišas","Turi tikti ,,Volcano“ IVUS aparatui. 30x100 cm dydžio su užklijuojamu galu.","vnt.",100]
[null,null,null,null,null,"PVM suma, Eur"]
[null,null,null,null,null,"Orientacinė suma su PVM, Eur"]
[null,"Orientacinė suma su PVM, Eur žodžiais:"]
["64.","Specialios paskirties viela Nr. 1","PTKA vielos kraujo spaudimui matuoti, pritaikytos RADI sistemai. Viela komplektuojama su fiksatoriumi ir pajungimo kabeliu.","vnt.",2000]
[null,null,null,null,null,"PVM suma, Eur"]
[null,null,null,null,null,"Orientacinė suma su PVM, Eur"]
[null,"Orientacinė suma su PVM, Eur žodžiais:"]
["65.","Specialios paskirties viela Nr. 2","PTKA vielos kraujo spaudimui matuoti, pritaikytos RADI sistemai. Viela komplektuojama su fiksatoriumi ir signalo perdavimo įrenginiu (bekabelinė).","vnt.",2000]
[null,null,null,null,null,"PVM suma, Eur"]
[null,null,null,null,null,"Orientacinė suma su PVM, Eur"]
[null,"Orientacinė suma su PVM, Eur žodžiais:"]
["66.","Koronarinis mikro kateteris pravedėjas","Ilgiai: nuo 130 cm iki 150 cm. Išorinis diametras ne daugiau 1,8 F/ 2,6 mm. Distaliniame gale – auksu dengtas rentgenokontrastinis markeris. Pritaikytas naudoti su 0,014 colio vielomis pravedėjomis.","vnt.",500,498,0.05,{"$f":"F273*1.05","v":522.9},{"$f":"E273*F273","v":249000},"Asahi gamintojas, Corsair Pro / Caravel"]
[null,null,null,null,null,"PVM suma, Eur",null,null,{"$f":"I275-I273","v":12450}]
[null,null,null,null,null,"Orientacinė suma su PVM, Eur",null,null,{"$f":"E273*H273","v":261450}]
[null,"Orientacinė suma su PVM, Eur žodžiais:",null,{"$f":"suma_zodziais(I275)","v":"Du šimtai šešiasdešimt vienas tūkstantis keturi šimtai penkiasdešimt eurų  00 ct"}]
["67.","Mikrokateteris be vielos pravedėjos","Ilgis nuo 130 cm iki 150 cm. Išorinis diametras ne daugiau 2,4 F/ 0,80 mm, vidinis diametras ne mažiau 0,023 colio/ 0,57 mm. Distalinis galas – tiesus. 3 sluoksnių kateterio struktūra: vidinis - PTFE danga, vidurinis – volframo vijos, išorinis – poliesterio elastomeras ir pigmentas su hidrofiline polimerine danga. Pritaikytas naudoti su 0,018 colio ir 0,016 colio vielomis pravedėjomis. Maksimalus slėgis ne mažesnis 750 atm/ 5,171 kPa.","vnt.",100,498,0.05,{"$f":"F277*1.05","v":522.9},{"$f":"E277*F277","v":49800},"Asahi gamintojas, Corsair Pro / Caravel"]
[null,null,null,null,null,"PVM suma, Eur",null,null,{"$f":"I279-I277","v":2490}]
[null,null,null,null,null,"Orientacinė suma su PVM, Eur",null,null,{"$f":"E277*H277","v":52290}]
[null,"Orientacinė suma su PVM, Eur žodžiais:",null,{"$f":"suma_zodziais(I279)","v":"Penkiasdešimt du tūkstančiai du šimtai devyniasdešimt eurų  00 ct"}]
["68.","Mikroviela - pravedėja","Ilgis 180±5 cm. Išorinis diametras 0,012 colio ir 0,016 colio. Vielos šerdis pagaminta iš nitinolio (nikelis+titanas) užtikrinantis elastingumą. Vienos dalies konstrukcija. Distalinis, ne mažiau 2 cm ilgio, rentgenokontrastinis markeris (aukso vijos). Padengta hidrofiline danga. Galiuko modifikacijos: 45° kampu, 90° kampu x 4 mm, 90° kampu x 6 mm, 1,5 cm “J” formos, dvigubas lenkimas: 90° + 150°. Lankstus galas: 25 cm ir 35 cm.","vnt.",10]
[null,null,null,null,null,"PVM suma, Eur"]
[null,null,null,null,null,"Orientacinė suma su PVM, Eur"]
[null,"Orientacinė suma su PVM, Eur žodžiais:"]
["69.","Trombų aspiracinis kateteris","Nerūdijančio plieno kateterio konstrukcija užtikrina tvirtumą ir atsparumą užlinkimams, proksimalinė kateterio dalis kieta, distalinė - minkšta. Hidrofilinis padengimas ne mažiau 40 cm, užtikrinantis gerą kateterio praeinamumą. Distalinės dalies vidinis diametras – ne mažiau 1,00/1,25 mm; išorinis diametras – ne daugiau 1,70/1,96 mm. Proksimalinės dalies vidinis diametras – ne mažiau 1,10/1,30 mm; išorinis diametras – ne daugiau 1,40/1,60 mm. Kateterio pašalinimo paviršius distalinėje dalyje – ne mažiau 0,78/1,23 mm²; Kateterio pašalinimo paviršius proksimalinėje dalyje – ne mažiau 0,95/1,32 mm². Kateteris dviejų dydžių - 6F ir 7F. Kateterio ovalaus galo ilgis - 6±1 mm.","vnt.",500,134,0.05,{"$f":"F285*1.05","v":140.70000000000002},{"$f":"E285*F285","v":67000},"Thrombio, gamintojas Biosensors Kaneka"]
[null,null,null,null,null,"PVM suma, Eur",null,null,{"$f":"I287-I285","v":3350.0000000000146}]
[null,null,null,null,null,"Orientacinė suma su PVM, Eur",null,null,{"$f":"E285*H285","v":70350.000000000015}]
[null,"Orientacinė suma su PVM, Eur žodžiais:",null,{"$f":"suma_zodziais(I287)","v":"Septyniasdešimt tūkstančių trys šimtai penkiasdešimt eurų  00 ct"}]
["70.","Trombų aspiracinis kateteris su stiletu","Tinkamas darbui su 0,014 colio viela. Kateterio lankstumui užtikrinti komplektuojamas su stiletu. Kateterio ilgis ne mažiau 140 cm. Išorinis diametras ne daugiau 1,70 mm. Kateterio pašalinimo paviršius ne mažiau 0,95 mm2, atsiurbimo greitis ne mažiau kaip 1,6cc/s.","vnt.",100,134,0.05,{"$f":"F289*1.05","v":140.70000000000002},{"$f":"E289*F289","v":13400},"Thrombio, gamintojas Biosensors Kaneka"]
[null,null,null,null,null,"PVM suma, Eur",null,null,{"$f":"I291-I289","v":670.00000000000182}]
[null,null,null,null,null,"Orientacinė suma su PVM, Eur",null,null,{"$f":"E289*H289","v":14070.000000000002}]
[null,"Orientacinė suma su PVM, Eur žodžiais:",null,{"$f":"suma_zodziais(I291)","v":"Keturiolika tūkstančių septyniasdešimt eurų  00 ct"}]
["71.","Acist prietaiso valdymo ir švirkšto rinkinys","Rinkinys turi tikti Acist aparatui. Sistema turi būti nedaloma, t.y. pagaminta vieno gamintojo ir sukomplektuota pilnai.","vnt.",300]
[null,null,null,null,null,"PVM suma, Eur"]
[null,null,null,null,null,"Orientacinė suma su PVM, Eur"]
[null,"Orientacinė suma su PVM, Eur žodžiais:"]
["72.","Švirkštas angiografiniam injektoriui","Vienkartinis. Tūris 150 ml. MEDRAD (MARK V) tipo aukšto slėgio injektoriui.","vnt.",1000,5.5,0.05,{"$f":"F297*1.05","v":5.7750000000000004},{"$f":"E297*F297","v":5500},"Gamintojas SCW, prekės kodas 832603."]
[null,null,null,null,null,"PVM suma, Eur",null,null,{"$f":"I299-I297","v":275}]
[null,null,null,null,null,"Orientacinė suma su PVM, Eur",null,null,{"$f":"E297*H297","v":5775}]
[null,"Orientacinė suma su PVM, Eur žodžiais:",null,{"$f":"suma_zodziais(I299)","v":"Penki tūkstančiai septyni šimtai septyniasdešimt penki eurai  00 ct"}]
["73.","Aukšto spaudimo linija automatiniam švirkštui","Pritaikyta aukštam slėgiui (ne mažiau1200 PSI). Lanksti, mažo išorinio diametro 3-4 mm, permatoma. Su skirtingais konektoriais (F/M) ir vienodais (M/M ir F/F) abiejuose galuose. Ilgis nuo 50 cm iki 100 cm.","vnt.",1000,4.05,0.05,{"$f":"F301*1.05","v":4.2525000000000004},{"$f":"E301*F301","v":4050},"Gamintojas SCW, prekės kodas 832804."]
[null,null,null,null,null,"PVM suma, Eur",null,null,{"$f":"I303-I301","v":202.5}]
[null,null,null,null,null,"Orientacinė suma su PVM, Eur",null,null,{"$f":"E301*H301","v":4252.5}]
[null,"Orientacinė suma su PVM, Eur žodžiais:",null,{"$f":"suma_zodziais(I303)","v":"Keturi tūkstančiai du šimtai penkiasdešimt du eurai  50 ct"}]
["74.","A.radialis užspaudėjas","Permatomos medžiagos, steriliame įpakavime kartu su specialiu švirkštu.\nUžspaudėjas greitai fiksuojamas prie rankos. Užspaudėjo vieta, kuri dedama ant punkcijos vietos, pažymėta specialiu žymeniu. Užspaudėjo konstrukcija: diržas, palaikomoji plokštelė ir du oro balionai užtikrina gerą a. ulnaris, veninę kraujotaką, leidžia išvengti nervų užspaudimo.\n","vnt.",10000,7.1,0.05,{"$f":"F305*1.05","v":7.4550000000000001},{"$f":"E305*F305","v":71000},"Gamintojas SCW, prekės kodas 835703."]
[null,null,null,null,null,"PVM suma, Eur",null,null,{"$f":"I307-I305","v":3550}]
[null,null,null,null,null,"Orientacinė suma su PVM, Eur",null,null,{"$f":"E305*H305","v":74550}]
[null,"Orientacinė suma su PVM, Eur žodžiais:",null,{"$f":"suma_zodziais(I307)","v":"Septyniasdešimt keturi tūkstančiai penki šimtai penkiasdešimt eurų  00 ct"}]
["75.","Arteria radialis užspaudėjas po radialinių procedūrų XL dydžio","Didelio dydžio - pritaikytas didelės apimties riešui. Pagamintas iš pilnai permatomos medžiagos – kraujavimo kontrolei. Selektyviai užspaudžiama a. radialis prileidžiant oro į du specialius balionus. Užspaudėjas greitai fiksuojamas prie rankos specialiu segtuvu. Užspaudėjo vieta, kuri dedama ant punkcijos vietos pažymėtas specialiu žymeniu (tašku). Tūris – nuo 13 ml iki 18 ml. Užspaudėjo konstrukcija: diržas, palaikomoji plokštelė ir du oro balionai užtikrina gerą a. ulnaris, veninę kraujotaką, leidžia išvengti nervų užspaudimo. Oro prileidimas kontroliuojamas specialiu slėgio kontrolės balionu. Oras prileidžiamas su švirkštu. Užspaudėjas sterilus.","vnt.",10000,7.1,0.05,{"$f":"F309*1.05","v":7.4550000000000001},{"$f":"E309*F309","v":71000},"Gamintojas SCW, prekės kodas 835703."]
[null,null,null,null,null,"PVM suma, Eur",null,null,{"$f":"I311-I309","v":3550}]
[null,null,null,null,null,"Orientacinė suma su PVM, Eur",null,null,{"$f":"E309*H309","v":74550}]
[null,"Orientacinė suma su PVM, Eur žodžiais:",null,{"$f":"suma_zodziais(I311)","v":"Septyniasdešimt keturi tūkstančiai penki šimtai penkiasdešimt eurų  00 ct"}]
["76.","Kraujagyslių uždarymo po kateterizacijos sistema su kolagenu","Punkcijos angą uždarančios dalys pagamintos iš visiškai besirezorbuojančios medžiagos. Komplektuojama su: 70±5 cm styga su “J” formos galu (6F – 0,035 colio diametras, 8F – 0,038 colio diametras), arteriotominiu nukreipėju, įvedimo kateteriu. V-Twist kolageno įvedimo technologija. Galima naudoti antegradinei ir retrogradinei arterijų punkcijai uždaryti.","vnt.",3000]
[null,null,null,null,null,"PVM suma, Eur"]
[null,null,null,null,null,"Orientacinė suma su PVM, Eur"]
[null,"Orientacinė suma su PVM, Eur žodžiais:"]
["77.","Kraujagyslių uždarymo po kateterizacijos sistema su metaliniu žiedu","Galimybė kateterizuoti kraujagyslę toje pačioje vietoje iš karto po sistemos panaudojimo. Uždaromas diametras 5-9 F.","vnt.",100]
[null,null,null,null,null,"PVM suma, Eur"]
[null,null,null,null,null,"Orientacinė suma su PVM, Eur"]
[null,"Orientacinė suma su PVM, Eur žodžiais:"]
["78.","Kraujagyslių uždarymo po kateterizacijos sistema su polietilenglikoliu","Polietilenglikolio (PEG) dalies pilna rezorbcija per 30 dienų. Panaudojimas per įvestus 5F - 7F introdiuserius. Uždarymo metu laikinai išpučiamas balionėlis kraujagyslėje. Po uždarymo kraujagyslės spindyje nelieka svetimkūnio. Galimybė pakartotinai punktuoti arteriją toje pačioje vietoje iš karto po arterijos uždarymo.","vnt.",50,114.98,0.05,{"$f":"F321*1.05","v":120.72900000000001},{"$f":"E321*F321","v":5749},"Mynx Grip, gamintojas Access Closure"]
[null,null,null,null,null,"PVM suma, Eur",null,null,{"$f":"I323-I321","v":287.45000000000073}]
[null,null,null,null,null,"Orientacinė suma su PVM, Eur",null,null,{"$f":"E321*H321","v":6036.4500000000007}]
[null,"Orientacinė suma su PVM, Eur žodžiais:",null,{"$f":"suma_zodziais(I323)","v":"Šeši tūkstančiai trisdešimt šeši eurai  45 ct"}]
["79.","Šlaunies arterijos užspaudimo po punkcijos prietaisas","Sistema turi būti nedaloma, t.y. pagaminta vieno gamintojo ir sukomplektuota pilnai"]
["79.1.","Skaidri išpučiama dalis ir rėmas","Komplekte vienkartinė keičiama skaidri išpučiama dalis ir rėmas. Naudojama su specialiu manometru.","vnt.",100]
["79.2.","Šlaunies arterijos užspaudėjo keičiama  išpučiama dalis","Vienkartinė skaidri išpučiama dalis.","vnt.",100]
[null,null,null,null,null,"Orientacinė suma be PVM, Eur"]
[null,null,null,null,null,"PVM suma, Eur"]
[null,null,null,null,null,"Orientacinė suma su PVM, Eur"]
[null,"Orientacinė suma su PVM, Eur žodžiais:"]
["80.","Kraujagyslių uždarymo po aortos stentavimo sistema","Kraujagyslių uždarymo sistema su predilatatoriumi, skirta iki 24 F diametro punkcijos vietai užsiūti. Sistemą sudaro 2 perpinti polesterio siūlai ir 4 nitinolio adatos. Manipuliacijų prietaisu metu išlieka patekimo į kraujagyslę galimybė.","vnt.",300]
[null,null,null,null,null,"PVM suma, Eur"]
[null,null,null,null,null,"Orientacinė suma su PVM, Eur"]
[null,"Orientacinė suma su PVM, Eur žodžiais:"]
["81.","Kraujagyslių uždarymo po kateterizacijos sistema","Kraujagyslė uždaroma su siūlo ir mazgo pagalba, skirta nuo 5 F iki 21 F diametro punkcijos vietai užsiūti. Galimybė kateterizuoti kraujagyslę toje pačioje vietoje iš karto po sistemos panaudojimo. Manipuliacijų prietaisu metu išlieka patekimo į kraujagyslę galimybė.","vnt.",50]
[null,null,null,null,null,"PVM suma, Eur"]
[null,null,null,null,null,"Orientacinė suma su PVM, Eur"]
[null,"Orientacinė suma su PVM, Eur žodžiais:"]
["82.","Miokardo biopsijos žnyplės","Paaštrintos rankiniu būdu. Darbinis ilgis nuo 50 cm iki 110 cm ribose. Žnyplių 5F dydžio modelis skirtas ne mažesniam, nei 2,2 mm3 bioptato tūriui paimti ir praeinantis pro 6 F (0,071 colio vidinio skersmens) nukreipiantyjį kateterį. Žnyplių 6,5F modelis skirtas ne mažesniam, nei 6,5 mm3 bioptato tūriui paimti ir praeinantis pro 7 F (0,081 colio vidinio skersmens) nukreipiantyjį kateterį.","vnt.",300,219.82,0.05,{"$f":"F340*1.05","v":230.81100000000001},{"$f":"E340*F340","v":65946},"Miocardial Biopsy Forceps, AB Medica, visi modeliai"]
[null,null,null,null,null,"PVM suma, Eur",null,null,{"$f":"I342-I340","v":3297.3000000000029}]
[null,null,null,null,null,"Orientacinė suma su PVM, Eur",null,null,{"$f":"E340*H340","v":69243.3}]
[null,"Orientacinė suma su PVM, Eur žodžiais:",null,{"$f":"suma_zodziais(I342)","v":"Šešiasdešimt devyni tūkstančiai du šimtai keturiasdešimt trys eurai  30 ct"}]
["83.","Biopsinės žnyplės","Pagamintos iš metalo. Ilgis ne mažiau 105 cm. Bioptato paėmimo žnyplių dydis 1,5 mm; 1,8 mm; 2,2 mm; 2,4 mm. Įvedimo skersmuo:1,5 mm - ne daugiau 5 F, 1,8 mm - ne daugiau 6 F, 2,2 mm - ne daugiau 7 F, 2,4 mm - ne daugiau 7,5 F. Žnyplių formų pasirinkimas: tiesios, lenktos 45° kampu, lenktos 90° kampu.","vnt.",300]
[null,null,null,null,null,"PVM suma, Eur"]
[null,null,null,null,null,"Orientacinė suma su PVM, Eur"]
[null,"Orientacinė suma su PVM, Eur žodžiais:"]
["84.","Vienkartinio naudojimo aukšto spaudimo infuzinis maišas","500 ml, 1000 ml ir 3000 ml talpos su dvigubo spaudimo, spalvomis paženklintu vožtuvu, pakabinami, su pripūtimo viena ranka galimybe.\nSu integruotu pripūtimo įtaisu ir kraneliu.\n","vnt.",50,33.31,0.05,{"$f":"F348*1.05","v":34.975500000000004},{"$f":"E348*F348","v":1665.5},"Gamintojas SCW, prekės kodas 803101."]
[null,null,null,null,null,"PVM suma, Eur",null,null,{"$f":"I350-I348","v":83.275000000000091}]
[null,null,null,null,null,"Orientacinė suma su PVM, Eur",null,null,{"$f":"E348*H348","v":1748.7750000000001}]
[null,"Orientacinė suma su PVM, Eur žodžiais:",null,{"$f":"suma_zodziais(I350)","v":"Vienas tūkstantis septyni šimtai keturiasdešimt aštuoni eurai  78 ct"}]
["85.","Grįžimo į arterijos spindį kateteris","Grįžimo technologija („re-entry“ arba lygiavertė), dvi-komponentinė sistema. Pritaikytas darbui su 6 F introdiuseriu. Sistemos ilgis – ‘‘short‘‘ tipo ne mažiau 70 cm ir ‘‘long‘‘ tipo ne mažiau 100 cm. Kateterio distalinis galas – lankstaus kaklelio formos. Balionas – diametras 5,4 mm kūgio tipo formos. Komplektas su pritaikytu 0,014 colio, 300 cm ilgio pravedėju. Tinka naudoti su 0,021 colio vidinio diametro mikrokateteriu.","vnt.",100]
[null,null,null,null,null,"PVM suma, Eur"]
[null,null,null,null,null,"Orientacinė suma su PVM, Eur"]
[null,"Orientacinė suma su PVM, Eur žodžiais:"]
["86.","Optinės koherancijos tomografijos (OKT) kateteris","OKT kateteriai skirti vainikinių arterijų spindžio ir audinių kokybiniam ir kiekybiniam morfologijos įvertinimui vainikinių arterijų angiografijos ir perkutaninės koronarinės intervencijos metu, siekiant optimizuoti diagnostikos ir gydymo rezultatus. Kateterį sudaro dvi pagrindinės dalys: kateterio korpusas ir viduje besisukančio šviesolaidžio optinių vaizdų gavimo šerdis. Kateteris turi būti suderinamas su St. Jude Medical Ilumien optinės koherancijos tomografijos sistema. Distalinio kateterio galo išorinis skersmuo ne daugiau 2,7F (0,036 colio), suderinamas su 6F nukreipiančiuoju kateteriu, ilgis 135 cm. Kateteris skirtas naudoti su 0,014 colio vielute, naudojama perkutaninėms koronarinėms intervencijoms. Kateteris turi rentgenokontrastines žymas padedančias jį pozicionuoti procedūros metu: distalinė žyma yra 5 mm atstumu nuo kateterio galo, proksimali žyma yra 3-5 mm prieš vaizdo šviesolaidžio lęšį, atstumas tarp žymų 20 mm. Vieno automatinio atitraukimo metu kateteriu galima įvertinti 55 mm ilgio vainikinės arterijos segmentą. ","vnt.",300]
[null,null,null,null,null,"PVM suma, Eur"]
[null,null,null,null,null,"Orientacinė suma su PVM, Eur"]
[null,"Orientacinė suma su PVM, Eur žodžiais:"]
["87.","„Lunderquist“ viela","Ilgis ne mažiau 260 cm. Diametras 0,035”","vnt.",200]
[null,null,null,null,null,"PVM suma, Eur"]
[null,null,null,null,null,"Orientacinė suma su PVM, Eur"]
[null,"Orientacinė suma su PVM, Eur žodžiais:"]
["88.","Manifoldas","Dviejų ir trijų kraniukų. Turi atlaikyti slėgį ne mažiau 500 PSI.","vnt.",10000]
[null,null,null,null,null,"PVM suma, Eur"]
[null,null,null,null,null,"Orientacinė suma su PVM, Eur"]
[null,"Orientacinė suma su PVM, Eur žodžiais:"]
["89.","Sterilus perikardo drenavimo rinkinys","Rinkinio sudėtyje turi būti: perikardo drenavimo kateteris su šoninėmis angomis (8-8,5 F diametro ir 40 ± 10 cm ilgio), dilatatorius (8.5-9 F diametro ir 20-25 cm ilgio), viela-pravedėjas abiem minkštais galais(80 ± 5 cm ilgio), dvi 18 G punkcinės adatos (9 ir 15 cm ilgio), vienkartinis skalpeilis Nr 11, ne mažiau kaip du švirkštai (10 ir 60 ml), 1000 ml talpos drenavimo maišelis su išleidimo galimybe, didelio diametro trišakis kraniukas surinkimo maišeliui prijungti prie dreno, siūlas dreno fiksavimui (netirpstantis siūlas su lenkta pjaunančia adata).","vnt.",30]
[null,null,null,null,null,"PVM suma, Eur"]
[null,null,null,null,null,"Orientacinė suma su PVM, Eur"]
[null,"Orientacinė suma su PVM, Eur žodžiais:"]
["90.","Termodiliucinis kateteris","Kateterio ilgis nuo 90 cm iki 110 cm, 4-5 kanalų, 5-7,5 F dydžio. Baliono tūris 0,75-1,50 kub.cm.","vnt.",1000]
[null,null,null,null,null,"PVM suma, Eur"]
[null,null,null,null,null,"Orientacinė suma su PVM, Eur"]
[null,"Orientacinė suma su PVM, Eur žodžiais:"]
["91.","Plaučių arterijos monitoravimo kateteris","Kateterio ilgis nuo 90 cm iki 110 cm, 2-3 kanalų, 5-7 F dydžio. Baliono tūris 0,75-1,50 kub.cm.","vnt.",1000]
[null,null,null,null,null,"PVM suma, Eur"]
[null,null,null,null,null,"Orientacinė suma su PVM, Eur"]
[null,"Orientacinė suma su PVM, Eur žodžiais:"]
["92.","Kranelis","Vienkartinis, sterilus, trijų padėčių, turi atlaikyti ne mažesnį nei 1200PSI slėgį.","vnt.",10000]
[null,null,null,null,null,"PVM suma, Eur"]
[null,null,null,null,null,"Orientacinė suma su PVM, Eur"]
[null,"Orientacinė suma su PVM, Eur žodžiais:"]
["93.","Aukšto spaudimo linija automatiniam švirkštui","Pritaikytos aukštam slėgiui (ne mažiau 1200 PSI). Lanksčios ir permatomos. Su skirtingomis jungtimis (F/M) abiejuose galuose. Ilgis 50-100 cm.","vnt.",1000,4.05,0.05,{"$f":"F384*1.05","v":4.2525000000000004},{"$f":"E384*F384","v":4050},"Gamintojas SCW, prekės kodas 832804."]
[null,null,null,null,null,"PVM suma, Eur",null,null,{"$f":"I386-I384","v":202.5}]
[null,null,null,null,null,"Orientacinė suma su PVM, Eur",null,null,{"$f":"E384*H384","v":4252.5}]
[null,"Orientacinė suma su PVM, Eur žodžiais:",null,{"$f":"suma_zodziais(I386)","v":"Keturi tūkstančiai du šimtai penkiasdešimt du eurai  50 ct"}]
["94.","Jungtis Luer standarto linijoms","Luer-Luer ML-ML (“vyriška”-“vyriška”) abiejuose galuose prisukama vienkartinė sterili jungtis","vnt.",10000]
[null,null,null,null,null,"PVM suma, Eur"]
[null,null,null,null,null,"Orientacinė suma su PVM, Eur"]
[null,"Orientacinė suma su PVM, Eur žodžiais:"]
["95.","PTKA balionai lėtinėms okliuzijoms atverti OTW tipo","Gero slydimo – spec. hidrofilinė silxdanga. Balionas pagamintas iš atsparios abrazijoms quadflex ar lygiavertės medžiagos. Nominalus slėgis ne mažiau 6 atm, RBP ne mažiau 18 atm. Vienas rentgeno kontrastinis markeris. Balionėlių ilgiai iki 15mm ir diametrai nuo1,0 mm iki 1,5 mm. Balioninio kateterio naudojamas ilgis ne mažesnis kaip 140 cm. Kontroliuojamo išsiplėtimo, baliono diametro kitimas iki 10 procentų. Pritaikyta 0,014 colio diametro vielai.","vnt.",250,69.48,0.05,{"$f":"F392*1.05","v":72.954000000000008},{"$f":"E392*F392","v":17370},"Conic Vascular gamintojas, Conic One balionas "]
[null,null,null,null,null,"PVM suma, Eur",null,null,{"$f":"I394-I392","v":868.50000000000364}]
[null,null,null,null,null,"Orientacinė suma su PVM, Eur",null,null,{"$f":"E392*H392","v":18238.500000000004}]
[null,"Orientacinė suma su PVM, Eur žodžiais:",null,{"$f":"suma_zodziais(I394)","v":"Aštuoniolika tūkstančių du šimtai trisdešimt aštuoni eurai  50 ct"}]
["96.","Balionai šoninėms šakoms plėsti","Gero slydimo - spec. hidrofilinė danga. Diametras: vidinė dalis ne daugiau 1,7 F, distalinė dalis – ne daugiau 2,5 F. Du rentgeno kontrastiniai markeriai. Balionėlio ilgis ne daugiau 10 mm, diametras nuo 2,0 mm iki 3.0 mm. Balioninio kateterio naudojamas ilgis ne mažiau 140 cm. Universalaus panaudojimo - ,,kissing“ metodu plėsti šoninei šakai. Balionas kūgio formos (distalinė baliono dalis iki 10 mm išsiskleidžia pilnai, proksimalinė iki 8 mm kūgio formos). Pritaikyta 0,014 colio diametro vielai.","vnt.",500]
[null,null,null,null,null,"PVM suma, Eur"]
[null,null,null,null,null,"Orientacinė suma su PVM, Eur"]
[null,"Orientacinė suma su PVM, Eur žodžiais:"]
["97.","PTA balioniniai kateteriai nedidelio diametro arterijoms","OTW sistema, naudojami su 0,018 colio PTA vielomis. Žemo profilio: proksim./distal. ne daugiau 0,021 colio. Labai aukšto slėgio RBP ne mažiau 14-16 atm., MBP ne mažiau 20 atm. 2 rentgenokontrastiniai markeriai. Kateterių ilgiai nuo 75 cm iki 180 cm. Balionų diametrai nuo 2 mm iki 9 mm, ilgiai nuo 20 mm iki 280 mm.","vnt.",150,69.48,0.05,{"$f":"F400*1.05","v":72.954000000000008},{"$f":"E400*F400","v":10422},"Conic Vascular gamintojas, Milvus OTW 3,2 F balionas"]
[null,null,null,null,null,"PVM suma, Eur",null,null,{"$f":"I402-I400","v":521.10000000000036}]
[null,null,null,null,null,"Orientacinė suma su PVM, Eur",null,null,{"$f":"E400*H400","v":10943.1}]
[null,"Orientacinė suma su PVM, Eur žodžiais:",null,{"$f":"suma_zodziais(I402)","v":"Dešimt tūkstančių devyni šimtai keturiasdešimt trys eurai  10 ct"}]
["98.","PTA balioniniai kateteriai, naudojami be nukreipiančiojo kateterio","Hidrofilinė danga. OTW (angl. over the wire) sistema, naudojami su 0,035 colio PTA vielomis. Žemo profilio: ne daugiau 0,041 colio. Aukšto slėgio RBP ne mažiau 15atm, MBP – ne mažiau 20 atm. Du rentgenokontrastiniai markeriai. Kateterių ilgiai 75±5 cm, 100±5 cm, 130±5 cm. Balionų diametrai nuo 3 mm iki 12 mm, ilgiai nuo 20 mm iki 220 mm.","vnt.",150]
[null,null,null,null,null,"PVM suma, Eur"]
[null,null,null,null,null,"Orientacinė suma su PVM, Eur"]
[null,"Orientacinė suma su PVM, Eur žodžiais:"]
["99.","PTKA rinkinys","PTKA monometras (slėgis ne mažiau 30 atm.). Vielos fiksatorius su metaliniu suktuku. Y jungtukas su paspaudimo/atititraukimo hemostazine membrana ir prailginta nuo 20 cm iki 50 cm praplovimo atšaka su trijų krypčių kraniuku. Vielos įvedimo adata. Vienoje sterilioje pakuotėje.","vnt.",1500]
[null,null,null,null,null,"PVM suma, Eur"]
[null,null,null,null,null,"Orientacinė suma su PVM, Eur"]
[null,"Orientacinė suma su PVM, Eur žodžiais:"]
["100.","Vainikinių ir periferinių arterijų trombų atsiurbimo kateteriai","Darbui su 0,014 colio viela, 6 ir 7 F diametro. Didelio vidinio diametro: 6F ne mažiau 1,1 mm; 7F ne mažiau 1,4 mm. 6 F kateterio pašalinimo paviršius distalinėje dalyje – ne mažiau 0,97 mm², 7 F kateterio pašalinimo paviršius proksimalinėje ir distalinėje dalyje – ne mažiau /1,54 mm². Kateterio ilgis ne mažiau 145 cm. Kateterio praėjimo profilis – ne daugiau 0,015 colio. Atsiurbimo greitis 6F kateteriui ne daugiau 12,5 s, 7F – ne daugiau 7 s. Papildoma styga kateterio standumui užtikrinti. Supakuoti kartu su atsiurbimo švirkštu ir trombų išplovimo filtru.","vnt.",150,134,0.05,{"$f":"F412*1.05","v":140.70000000000002},{"$f":"E412*F412","v":20100},"Thrombio, gamintojas Biosensors Kaneka"]
[null,null,null,null,null,"PVM suma, Eur",null,null,{"$f":"I414-I412","v":1005.0000000000036}]
[null,null,null,null,null,"Orientacinė suma su PVM, Eur",null,null,{"$f":"E412*H412","v":21105.000000000004}]
[null,"Orientacinė suma su PVM, Eur žodžiais:",null,{"$f":"suma_zodziais(I414)","v":"Dvidešimt vienas tūkstantis vienas šimtas penki eurai  00 ct"}]

{"sheet":"Sheet2","index":2,"n_rows":0,"n_cols":0,"rows_kept":0,"cut":false,"hidden":false,"merged":[]}

{"sheet":"Sheet3","index":3,"n_rows":0,"n_cols":0,"rows_kept":0,"cut":false,"hidden":false,"merged":[]}